Unique Reference Number,Transaction Date,Mechant Category Code Description,Location,Mechant Category Group Description,Amount,Supplier
FCOGPC20150600001,01/06/2015,"UTLTS-ELCTRC, GAS, HEATING OIL, SANITARY, WATER",TUR,Utilities and Non Automotive Fuel,503.49,51 FERIKOY VEZNE
FCOGPC20150600001,01/06/2015,ELECTRONIC SALES,ARE,General Retail and Wholesale,512.67,UNIVERSAL TRDG CO
FCOGPC20150600001,01/06/2015,"FREIGHT CARRIER,TRUCKING-LCL/LNG DIST, MVG/STORAGE",CAN,Freight and Storage,521.92,ARMSTRONG FINE ART SER
FCOGPC20150600001,01/06/2015,"EQUIPMENT RENTAL&LEASING SVS, FURNTURE/TOOL RENTAL",CAN,Miscellaneous Industrial/Commercial Supplies,536.44,DICKIE MOORE RENTALS
FCOGPC20150600001,01/06/2015,"GROCERY STORES, SUPERMARKETS",FRA,General Retail and Wholesale,551.84,METRO NANTER 16
FCOGPC20150600001,01/06/2015,COMPUTER SOFTWARE STORES,THA,Computer Equipment & Services,557.36,LANDLINK TECHNOLOGY
FCOGPC20150600001,01/06/2015,OFFICE AND COMMERCIAL FURNITURE,GBR,"Office Stationery, equipment and supplies",561.39,OSMOND GROUP LTD
FCOGPC20150600001,01/06/2015,"EQUIP, FURNITURE, HOME FURNSHNGS STRS (EXCPT APPL)",GBR,General Retail and Wholesale,575,DIPLOMATIC MISSION
FCOGPC20150600001,01/06/2015,PROFESSIONAL SERVICES-NOT ELSEWHERE CLASSIFIED,BRB,Professional Services,575.53,PROFESSIONAL EXECUTIVE
FCOGPC20150600001,01/06/2015,"UTLTS-ELCTRC, GAS, HEATING OIL, SANITARY, WATER",HRV,Utilities and Non Automotive Fuel,585.99,FINA 30101 ZAGREB
FCOGPC20150600001,01/06/2015,FLOOR COVERING STORES,TUR,General Retail and Wholesale,592.34,MKN INS.LTD.STI.
FCOGPC20150600001,01/06/2015,MISCELLANEOUS PUBLISHING AND PRINTING,USA,Print and advertising,626.21,CUSTOMTES.COM
FCOGPC20150600001,01/06/2015,"GROCERY STORES, SUPERMARKETS",MLT,General Retail and Wholesale,651.28,PISCOPO CASH & CARRY
FCOGPC20150600001,01/06/2015,"UTLTS-ELCTRC, GAS, HEATING OIL, SANITARY, WATER",FRA,Utilities and Non Automotive Fuel,691.91,GDF SUEZ
FCOGPC20150600001,01/06/2015,"DURABLE GOODS, NOT ELSEWHERE CLASSIFIED",USA,Miscellaneous Industrial/Commercial Supplies,704.03,LOGOLENSES
FCOGPC20150600001,01/06/2015,AUTOMOTIVE BODY REPAIR SHOPS,AUS,"Vehicles, servicing and spares",724.01,J V AUTOMOTIVE SERVICE
FCOGPC20150600001,01/06/2015,"UTLTS-ELCTRC, GAS, HEATING OIL, SANITARY, WATER",BHR,Utilities and Non Automotive Fuel,804.12,OCEAN WATER & ICE FACT
FCOGPC20150600001,01/06/2015,"EQUIP, FURNITURE, HOME FURNSHNGS STRS (EXCPT APPL)",JOR,General Retail and Wholesale,815.38,IKEA
FCOGPC20150600001,01/06/2015,"PACKAGE STORES, BEER, WINE, LIQUOR",TTO,General Retail and Wholesale,823.51,AS BRYDEN AND SONS LIM
FCOGPC20150600001,01/06/2015,"EQUIP, FURNITURE, HOME FURNSHNGS STRS (EXCPT APPL)",JOR,General Retail and Wholesale,855.75,IKEA
FCOGPC20150600001,01/06/2015,GENERAL CONTRACTORS/RESIDENTIAL BUILDINGS,JOR,Building Services,868.11,ETLAD FOR CONTRACTING
FCOGPC20150600001,01/06/2015,OFFICE AND COMMERCIAL FURNITURE,GBR,"Office Stationery, equipment and supplies",890.4,OSMOND GROUP LTD
FCOGPC20150600001,01/06/2015,"COMMERCIAL EQUIPMENT, NOT ELSEWHERE CLASSIFIED",GBR,Miscellaneous Industrial/Commercial Supplies,892.22,SURELOCK MCGILL LT
FCOGPC20150600001,01/06/2015,"SCHOOLS, BUSINESS AND SECRETARIAL",GBR,Training and Educational,924,TRADE SKILLS 4 U LTD
FCOGPC20150600001,01/06/2015,DUTY FREE STORES,DNK,General Retail and Wholesale,926.98,PETER JUSTESEN COMPANY
FCOGPC20150600001,01/06/2015,"EQUIP, FURNITURE, HOME FURNSHNGS STRS (EXCPT APPL)",JOR,General Retail and Wholesale,991.82,IKEA
FCOGPC20150600001,01/06/2015,OFFICE AND COMMERCIAL FURNITURE,GBR,"Office Stationery, equipment and supplies","1,000",OSMOND GROUP LTD
FCOGPC20150600001,01/06/2015,"BUILDING MATERIALS, LUMBER STORES",GBR,Building Materials,"1,068.44",MAYAK SERVICES LIMITED
FCOGPC20150600001,01/06/2015,TRAVEL AGENCIES,BRA,Travel Agencies,"1,109.80",HIGHLAND BARRA
FCOGPC20150600001,01/06/2015,ELECTRICAL PARTS AND EQUIPMENT,BRB,Building Materials,"1,140.75",CARIBBEAN LED LIGHTING
FCOGPC20150600001,01/06/2015,WHOLESALE CLUBS,RUS,General Retail and Wholesale,"1,142.28",METRO STORE 1013
FCOGPC20150600001,01/06/2015,"FABRIC, NEEDLEWORK, PIECE GOODS, AND SEWING STORES",GBR,General Retail and Wholesale,"1,318.44",COLEFAX & FOWLER L
FCOGPC20150600001,01/06/2015,TRAVEL,NLD,Airline,"1,350.01",AIRLINE
FCOGPC20150600001,01/06/2015,TRAVEL,NLD,Airline,"1,350.01",AIRLINE
FCOGPC20150600001,01/06/2015,AIR CONDITIONING AND REFRIGERATION REPAIR SHOPS,ARG,Building Services,"1,453.47",ITERM SRL
FCOGPC20150600001,01/06/2015,AIR CONDITIONING AND REFRIGERATION REPAIR SHOPS,ARG,Building Services,"1,491.28",ITERM SRL
FCOGPC20150600001,01/06/2015,AIR CONDITIONING AND REFRIGERATION REPAIR SHOPS,ARG,Building Services,"1,491.28",ITERM SRL
FCOGPC20150600001,01/06/2015,"BUILDING MATERIALS, LUMBER STORES",GBR,Building Materials,"1,497.72",MAYAK SERVICES LIMITED
FCOGPC20150600001,01/06/2015,"THEATRICAL PRODUCERS(EXCL MOTION PIX),TICKET AGNCY",USA,Leisure Activities,"2,203.23",MOBILE STAGE ENTERPRIS
FCOGPC20150600001,02/06/2015,PROFESSIONAL SERVICES-NOT ELSEWHERE CLASSIFIED,USA,Professional Services,503.31,SQ SEED PHILLY
FCOGPC20150600001,02/06/2015,"COMPUTERS, COMPUTER PERIPHERAL EQUIPMENT, SOFTWARE",KOR,Computer Equipment & Services,506.74,IJOI  7058
FCOGPC20150600001,02/06/2015,"FREEZER, LOCKER MEAT PROVISIONERS",CAN,General Retail and Wholesale,516.97,SASLOVE'S MEAT MARKET
FCOGPC20150600001,02/06/2015,"EATING PLACES, RESTAURANTS",SRB,Restuarants and Bars,535.09,ELITE FOOD & SERVICE
FCOGPC20150600001,02/06/2015,"GROCERY STORES, SUPERMARKETS",ARE,General Retail and Wholesale,553.39,CARREFOUR SHINDAGHA(DU
FCOGPC20150600001,02/06/2015,ACCESSORY AND APPAREL STORES-MISCELLANEOUS,DEU,General Retail and Wholesale,558.12,BOTTLE-PRINT GBR
FCOGPC20150600001,02/06/2015,GENERAL CONTRACTORS/RESIDENTIAL BUILDINGS,DEU,Building Services,563.46,SUMUP STEPHAN HAFFNE
FCOGPC20150600001,02/06/2015,ELECTRICAL PARTS AND EQUIPMENT,GBR,Building Materials,564.75,WILTS ELECTRICAL BRITS
FCOGPC20150600001,02/06/2015,HOTELS/MOTELS/RESORTS ,GBR,Hotels,583,ACCOMODATION SUPPLIER
FCOGPC20150600001,02/06/2015,BUSINESS SERVICES-NOT ELSEWHERE CLASSIFIED,GBR,Miscellaneous Industrial/Commercial Supplies,594,WWW.PMGLTD.CO.UK
FCOGPC20150600001,02/06/2015,ELECTRONIC SALES,IND,General Retail and Wholesale,766.81,ASHLIN COOLING SYSTEMS
FCOGPC20150600001,02/06/2015,"BAR,LOUNGE,DISCO,NIGHTCLUB,TAVERN-ALCOHOLIC DRINKS",ESP,Restuarants and Bars,793.05,SKY CAFFE.ANTONIA BAYO
FCOGPC20150600001,02/06/2015,"CLEANING AND MAINTENANCE, JANITORIAL SERVICES",CAN,Cleaning Services and Supplies,808.14,NEW VU WINDOW CLEANING
FCOGPC20150600001,02/06/2015,"CLEANING AND MAINTENANCE, JANITORIAL SERVICES",EST,Cleaning Services and Supplies,838.13,FILICLEAN
FCOGPC20150600001,02/06/2015,DIRECT MARKETING-COMBINATION CATALOG/RETAIL MERCH.,GBR,General Retail and Wholesale,850.8,IDENTILAM PLC
FCOGPC20150600001,02/06/2015,TRAVEL,BEL,Airline,861,AIRLINE
FCOGPC20150600001,02/06/2015,"BUILDING MATERIALS, LUMBER STORES",JAM,Building Materials,870.95,DESIGN OPTIONS LIMITED
FCOGPC20150600001,02/06/2015,TRAVEL AGENCIES,JAM,Travel Agencies,902.6,TOTAL TRAVEL SERVICES
FCOGPC20150600001,02/06/2015,TELEGRAPH SERVICES,GBR,Telecommunication Services,910,WP-GIBTELECOM LTD
FCOGPC20150600001,02/06/2015,FAMILY CLOTHING STORES,PAN,General Retail and Wholesale,965.34,RUFFINI INTL - PMA.
FCOGPC20150600001,02/06/2015,"SANITATION, POLISHING & SPECIALITY CLEANING PREP",JAM,Cleaning Services and Supplies,972.82,C & R ENTERPRISE
FCOGPC20150600001,02/06/2015,SCHOOLS & EDUCATIONAL SVC-NOT ELSEWHERE CLASSIFIED,CHE,Training and Educational,"1,008.75",MIGROS KLUBSCHULE MART
FCOGPC20150600001,02/06/2015,"EATING PLACES, RESTAURANTS",IRL,Restuarants and Bars,"1,053.18",BRAMBLES
FCOGPC20150600001,02/06/2015,BUSINESS SERVICES-NOT ELSEWHERE CLASSIFIED,FIN,Miscellaneous Industrial/Commercial Supplies,"1,054.86",IZ SAHKO-HAKALA O
FCOGPC20150600001,02/06/2015,AUTOMOBILE RENTAL AGENCY-NOT ELSEWHERE CLASSIFIED,KWT,Auto rental,"1,060.48",ALI ALGHANIM SONS
FCOGPC20150600001,02/06/2015,ACCESSORY AND APPAREL STORES-MISCELLANEOUS,DEU,General Retail and Wholesale,"1,133.15",BOTTLE-PRINT GBR
FCOGPC20150600001,02/06/2015,"EQUIP, FURNITURE, HOME FURNSHNGS STRS (EXCPT APPL)",BHR,General Retail and Wholesale,"1,173.08",SEDAR
FCOGPC20150600001,02/06/2015,HOTELS/MOTELS/RESORTS ,EGY,Hotels,"1,354.65",ACCOMODATION SUPPLIER
FCOGPC20150600001,02/06/2015,"GROCERY STORES, SUPERMARKETS",ZAF,General Retail and Wholesale,"1,359.67",PNP GLEN VILLAGE
FCOGPC20150600001,02/06/2015,"CLEANING AND MAINTENANCE, JANITORIAL SERVICES",EST,Cleaning Services and Supplies,"1,360.81",FILICLEAN
FCOGPC20150600001,02/06/2015,"EQUIP, FURNITURE, HOME FURNSHNGS STRS (EXCPT APPL)",GBR,General Retail and Wholesale,"2,090.90",THE ODD CHAIR COMPANY
FCOGPC20150600001,03/06/2015,BUSINESS SERVICES-NOT ELSEWHERE CLASSIFIED,GBR,Miscellaneous Industrial/Commercial Supplies,500,WWW.THE-EIC.COM
FCOGPC20150600001,03/06/2015,"CONTRACTORS,SPECIAL TRADE-NOT ELSEWHERE CLASSIFIED",NGA,Building Services,507.2,FINABOD ENTERPRISES
FCOGPC20150600001,03/06/2015,MISCELLANEOUS AND SPECIALTY RETAIL STORES,NGA,General Retail and Wholesale,513.85,FEMBS INVESTMENT LTD
FCOGPC20150600001,03/06/2015,TRAVEL AGENCIES,KWT,Travel Agencies,514.65,BADUR TRAVEL
FCOGPC20150600001,03/06/2015,"CONTRACTORS,SPECIAL TRADE-NOT ELSEWHERE CLASSIFIED",CAN,Building Services,525.89,HANDYMAN CONNECTION
FCOGPC20150600001,03/06/2015,ELECTRONIC SALES,FIN,General Retail and Wholesale,529.19,VERKKOKAUPPA COM JATKA
FCOGPC20150600001,03/06/2015,DEPARTMENT STORES,GBR,General Retail and Wholesale,551,WWW.JOHNLEWIS.COM
FCOGPC20150600001,03/06/2015,COMPUTER SOFTWARE STORES,ISR,Computer Equipment & Services,563.85,ALFA .A COMPUTERS LTD
FCOGPC20150600001,03/06/2015,HOTELS/MOTELS/RESORTS ,DEU,Hotels,567.07,ACCOMODATION SUPPLIER
FCOGPC20150600001,03/06/2015,"EQUIP, FURNITURE, HOME FURNSHNGS STRS (EXCPT APPL)",GBR,General Retail and Wholesale,586.36,KOIZAINTERNATIONAL
FCOGPC20150600001,03/06/2015,MISCELLANEOUS PUBLISHING AND PRINTING,MEX,Print and advertising,587.48,FACTOR DIGITAL
FCOGPC20150600001,03/06/2015,ADVERTISING SERVICES,GBR,Print and advertising,600,SQUAREPEG MEDIA LTD
FCOGPC20150600001,03/06/2015,"UTLTS-ELCTRC, GAS, HEATING OIL, SANITARY, WATER",BHR,Utilities and Non Automotive Fuel,622.09,OCEAN WATER & ICE FACT
FCOGPC20150600001,03/06/2015,"CABLE, SATELLITE, OTHER PAY TELEVISION, RADIO SVCS",KEN,General Retail and Wholesale,625.07,MULTICHOICE KENYA LIMI
FCOGPC20150600001,03/06/2015,PROFESSIONAL SERVICES-NOT ELSEWHERE CLASSIFIED,USA,Professional Services,629.91,PRINTGLOBE INC
FCOGPC20150600001,03/06/2015,BUSINESS SERVICES-NOT ELSEWHERE CLASSIFIED,RUS,Miscellaneous Industrial/Commercial Supplies,635.94,GREIYEKSPRESS
FCOGPC20150600001,03/06/2015,ELECTRONIC SALES,PAK,General Retail and Wholesale,658.59,ALTAHUR SANITARY
FCOGPC20150600001,03/06/2015,FAMILY CLOTHING STORES,GBR,General Retail and Wholesale,663.99,NEXT DIRECTORY
FCOGPC20150600001,03/06/2015,TRAVEL AGENCIES,KWT,Travel Agencies,666.28,BADUR TRAVEL
FCOGPC20150600001,03/06/2015,BUSINESS SERVICES-NOT ELSEWHERE CLASSIFIED,USA,Miscellaneous Industrial/Commercial Supplies,670.12,HIGH QUEST PARTNERS LL
FCOGPC20150600001,03/06/2015,HOTELS/MOTELS/RESORTS ,GBR,Hotels,670.5,ACCOMODATION SUPPLIER
FCOGPC20150600001,03/06/2015,"GROCERY STORES, SUPERMARKETS",KEN,General Retail and Wholesale,673.73,CAMP SUPPLIES L
FCOGPC20150600001,03/06/2015,MOTION PICTURE THEATERS,ESP,Leisure Activities,681.95,EL TRUST HOSTELERO
FCOGPC20150600001,03/06/2015,HOTELS/MOTELS/RESORTS ,USA,Hotels,682.63,ACCOMODATION SUPPLIER
FCOGPC20150600001,03/06/2015,ELECTRONIC SALES,KEN,General Retail and Wholesale,695.01,CREATIVE INNOVA
FCOGPC20150600001,03/06/2015,HOTELS/MOTELS/RESORTS ,RWA,Hotels,699.85,ACCOMODATION SUPPLIER
FCOGPC20150600001,03/06/2015,DEPARTMENT STORES,USA,General Retail and Wholesale,721.41,BLOOMINGDALE'S #001
FCOGPC20150600001,03/06/2015,"CLUBS-CNTRY,MBRSHIP(ATHLET,REC,SPRTS,PRIVATE GOLF",GBR,Leisure Activities,726,FULHAM FC COMM TRUST
FCOGPC20150600001,03/06/2015,ELECTRICAL CONTRACTORS,PAN,Building Services,726.15,SEGURINTEH SA
FCOGPC20150600001,03/06/2015,"HEATING, PLUMBING, AIR CONDITIONING CONTRACTORS",EGY,Building Services,751.64,FARES COOL
FCOGPC20150600001,03/06/2015,ELECTRONIC SALES,RUS,General Retail and Wholesale,767.69,OOO BELKA-URAL
FCOGPC20150600001,03/06/2015,"GLASS, PAINT, WALLPAPER STORES",SRB,Building Materials,793.64,VLADA GRADNJA SZR
FCOGPC20150600001,03/06/2015,PROFESSIONAL SERVICES-NOT ELSEWHERE CLASSIFIED,GBR,Professional Services,794.4,CIVIL SERVICE LEARNING
FCOGPC20150600001,03/06/2015,TRAVEL,ESP,Airline,804.82,AIRLINE
FCOGPC20150600001,03/06/2015,HOTELS/MOTELS/RESORTS ,JPN,Hotels,894.34,ACCOMODATION SUPPLIER
FCOGPC20150600001,03/06/2015,DIRECT MARKETING-CATALOG MERCHANTS,JPN,Mail Order / Direct Selling,905.81,PURASUMAKUSUMAKETSUTOH
FCOGPC20150600001,03/06/2015,"OFFICE, SCHOOL SUPPLY, AND STATIONERY STORES",IRL,"Office Stationery, equipment and supplies",938.06,AMALGAMATED COMPUTER S
FCOGPC20150600001,03/06/2015,PETROLEUM AND PETROLEUM PRODUCTS,MNG,Miscellaneous Industrial/Commercial Supplies,977.55,MAGNAI TRADE OIL
FCOGPC20150600001,03/06/2015,MISCELLANEOUS GENERAL MERCHANDISE,NGA,General Retail and Wholesale,"1,006.57",SIMCARE NIG LTD
FCOGPC20150600001,03/06/2015,COMPUTER SOFTWARE STORES,ISR,Computer Equipment & Services,"1,041.23",ALFA .A COMPUTERS LTD
FCOGPC20150600001,03/06/2015,"OPTICIANS,OPTICAL GOODS & EYEGLASSES",MAR,Medical Supplies and Services,"1,064.69",RAYON OPTIQUE
FCOGPC20150600001,03/06/2015,HOTELS/MOTELS/RESORTS ,COL,Hotels,"1,081.75",ACCOMODATION SUPPLIER
FCOGPC20150600001,03/06/2015,"SPORTS APPAREL, RIDING APPAREL STORES",NGA,General Retail and Wholesale,"1,111.56","25, OLORUNTOYIN"
FCOGPC20150600001,03/06/2015,BOOK STORES,CHL,Books and Periodicals,"1,119.64",LEGAL PUBLISHING
FCOGPC20150600001,03/06/2015,"UTLTS-ELCTRC, GAS, HEATING OIL, SANITARY, WATER",MSR,Utilities and Non Automotive Fuel,"1,145.46",CABLE & WIRELESS W.I M
FCOGPC20150600001,03/06/2015,"FIREPLACE, FIREPLACE SCREENS & ACCESSORIES STORES",TUR,General Retail and Wholesale,"1,310.44",UCEL PERDE SISTEMLERI
FCOGPC20150600001,03/06/2015,TRAVEL AGENCIES,KWT,Travel Agencies,"1,332.57",BADUR TRAVEL
FCOGPC20150600001,03/06/2015,"COLLEGES, UNIV, PRO SCHOOLS, JUNIOR COLLEGES",GBR,Training and Educational,"1,434",WWW.ILXGROUP.COM
FCOGPC20150600001,03/06/2015,"ORGANIZATIONS, CHARITABLE AND SOCIAL SERVICES",USA,Clubs/Associations/Organisations,"1,507.76",BLK NCC
FCOGPC20150600001,03/06/2015,HOTELS/MOTELS/RESORTS ,UKR,Hotels,"1,889.58",ACCOMODATION SUPPLIER
FCOGPC20150600001,03/06/2015,HOTELS/MOTELS/RESORTS ,GBR,Hotels,"6,505.05",ACCOMODATION SUPPLIER
FCOGPC20150600001,04/06/2015,HARDWARE EQUIPMENT AND SUPPLIES,IND,Miscellaneous Industrial/Commercial Supplies,508.07,MRA ENTERPRISES
FCOGPC20150600001,04/06/2015,ELECTRONIC SALES,AZE,General Retail and Wholesale,509.1,LINERS
FCOGPC20150600001,04/06/2015,"PACKAGE STORES, BEER, WINE, LIQUOR",MAR,General Retail and Wholesale,545.15,LA CLE DES CHAMPS II
FCOGPC20150600001,04/06/2015,MOTOR VEHICLE SUPPLIES AND NEW PARTS,NGA,"Vehicles, servicing and spares",549.71,THONNIE CHUKWU MOTORS
FCOGPC20150600001,04/06/2015,"UTLTS-ELCTRC, GAS, HEATING OIL, SANITARY, WATER",JAM,Utilities and Non Automotive Fuel,554.59,SHAW HAULAGE LIMITED
FCOGPC20150600001,04/06/2015,CONSTRUCTION MATERIALS NOT ELSEWHERE CLASSIFIED,KWT,Building Materials,578.49,GLOBAL HARDWARE EST.
FCOGPC20150600001,04/06/2015,"ASSOCIATIONS-CIVIC, SOCIAL, AND FRATERNAL",GBR,Leisure Activities,606,MARKET RESEARCH SO
FCOGPC20150600001,04/06/2015,"MISC FOOD STORE-CONVENIENCE,MRKT,SPLTY,VENDNG MACS",ITA,Catering and Catering Supplies,615.41,FORNO CIABATTINI F 994
FCOGPC20150600001,04/06/2015,COMPUTER NETWORK/INFORMATION SERVICES,AZE,Computer Equipment & Services,671.1,WWW.HESAB.AZ/AZEUROTEL
FCOGPC20150600001,04/06/2015,DIRECT MARKETING-OTHER DIRECT MARKETERS/NOT ELSEW.,USA,Mail Order / Direct Selling,673.51,OVR O.CO/OVERSTOCK.COM
FCOGPC20150600001,04/06/2015,TRAVEL AGENCIES,USA,Travel Agencies,678.41,HOTELS.COM
FCOGPC20150600001,04/06/2015,ELECTRONIC SALES,IND,General Retail and Wholesale,694.21,A 1 ELECTRONIC CENTRE
FCOGPC20150600001,04/06/2015,"EATING PLACES, RESTAURANTS",GBR,Restuarants and Bars,730.8,COMPASS SERVICES UK LT
FCOGPC20150600001,04/06/2015,"QUICK COPY,REPRODUCTION AND BLUEPRINTING SERVICES",GRC,"Office Stationery, equipment and supplies",745.04,DIATYPOS-D.S.KRANIOU &
FCOGPC20150600001,04/06/2015,HOTELS/MOTELS/RESORTS ,GBR,Hotels,750,ACCOMODATION SUPPLIER
FCOGPC20150600001,04/06/2015,"AUTO & TRUCK DLRS-SALES,SVC, REPRS,PRTS, & LEASING",JAM,"Vehicles, servicing and spares",754.56,TOYOTA JAMAICA
FCOGPC20150600001,04/06/2015,SERVICE STATIONS WITH OR WITHOUT ANCILLARY SERVICE,GRC,Automotive Fuel,785.93,BP-PAPATHANASIOU
FCOGPC20150600001,04/06/2015,HOUSEHOLD APPLIANCE STORES,GRC,General Retail and Wholesale,838.18,SMART TECH
FCOGPC20150600001,04/06/2015,HOUSEHOLD APPLIANCE STORES,GRC,General Retail and Wholesale,838.18,SMART TECH
FCOGPC20150600001,04/06/2015,DUTY FREE STORES,TUN,General Retail and Wholesale,872.29,STE HAMILA PORT LA GOU
FCOGPC20150600001,04/06/2015,WHOLESALE CLUBS,RUS,General Retail and Wholesale,877.56,METRO STORE 1013
FCOGPC20150600001,04/06/2015,TRAVEL AGENCIES,USA,Travel Agencies,916.93,OTT TOURS OF WASHINGTO
FCOGPC20150600001,04/06/2015,GOVERNMENT SERVICES-NOT ELSEWHERE CLASSIFIED,GBR,Statutory Bodies,984,THE HOME OFFICE
FCOGPC20150600001,04/06/2015,FLORISTS,EGY,Estate and garden Services,"1,026.03",FLOWER POWER
FCOGPC20150600001,04/06/2015,DEPARTMENT STORES,MLT,General Retail and Wholesale,"1,031.67",THE ATRIUM
FCOGPC20150600001,04/06/2015,VARIETY STORES,TZA,General Retail and Wholesale,"1,066.70",RATO GENERAL TRADERS
FCOGPC20150600001,04/06/2015,HOTELS/MOTELS/RESORTS ,LCA,Hotels,"1,083.65",ACCOMODATION SUPPLIER
FCOGPC20150600001,04/06/2015,PROFESSIONAL SERVICES-NOT ELSEWHERE CLASSIFIED,BRB,Professional Services,"1,151.96",PROFESSIONAL EXECUTIVE
FCOGPC20150600001,04/06/2015,HARDWARE EQUIPMENT AND SUPPLIES,IND,Miscellaneous Industrial/Commercial Supplies,"1,158.50",MRA ENTERPRISES
FCOGPC20150600001,04/06/2015,"COLLEGES, UNIV, PRO SCHOOLS, JUNIOR COLLEGES",GBR,Training and Educational,"1,195",WWW.OX.AC.UK
FCOGPC20150600001,04/06/2015,DEPARTMENT STORES,USA,General Retail and Wholesale,"1,199.99",SEARS ROEBUCK 1424
FCOGPC20150600001,04/06/2015,"GROCERY STORES, SUPERMARKETS",TZA,General Retail and Wholesale,"1,254.10",SHRIJEE TRADERS-OYSTER
FCOGPC20150600001,04/06/2015,"PHOTO DEVELOPING, PHOTOFINISHING LABORATORIES",USA,Print and advertising,"1,333.72",WOMEN MAKE MOVIES
FCOGPC20150600001,04/06/2015,VARIETY STORES,TZA,General Retail and Wholesale,"1,362.02",RATO GENERAL TRADERS
FCOGPC20150600001,04/06/2015,HARDWARE EQUIPMENT AND SUPPLIES,IND,Miscellaneous Industrial/Commercial Supplies,"1,413.83",MRA ENTERPRISES
FCOGPC20150600001,04/06/2015,DIRECT MARKETING-COMBINATION CATALOG/RETAIL MERCH.,FRA,General Retail and Wholesale,"1,426.58",TECTONA
FCOGPC20150600001,04/06/2015,GOVERNMENT SERVICES-NOT ELSEWHERE CLASSIFIED,GBR,Statutory Bodies,"1,500",THE HOME OFFICE
FCOGPC20150600001,04/06/2015,GOVERNMENT SERVICES-NOT ELSEWHERE CLASSIFIED,GBR,Statutory Bodies,"1,500",THE HOME OFFICE
FCOGPC20150600001,04/06/2015,HOTELS/MOTELS/RESORTS ,UKR,Hotels,"2,144.16",ACCOMODATION SUPPLIER
FCOGPC20150600001,04/06/2015,"COLLEGES, UNIV, PRO SCHOOLS, JUNIOR COLLEGES",GBR,Training and Educational,"2,736",LONDON MET UNI
FCOGPC20150600001,04/06/2015,"COLLEGES, UNIV, PRO SCHOOLS, JUNIOR COLLEGES",GBR,Training and Educational,"2,981",LONDON MET UNI
FCOGPC20150600001,04/06/2015,INFORMATION RETRIEVAL SERVICES,USA,Professional Services,"3,487.34",BILLTECH MELTWATER
FCOGPC20150600001,04/06/2015,TRAVEL AGENCIES,ECU,Travel Agencies,"8,844.15",ISLAS DE FUEGO
FCOGPC20150600001,05/06/2015,"AUTOMOTIVE PARTS, ACCESSORIES STORES",KEN,"Vehicles, servicing and spares",524.88,EAST AFRICAN MO
FCOGPC20150600001,05/06/2015,HOUSEHOLD APPLIANCE STORES,LBN,General Retail and Wholesale,528.1,3N3J/FANAR
FCOGPC20150600001,05/06/2015,"THEATRICAL PRODUCERS(EXCL MOTION PIX),TICKET AGNCY",CAN,Leisure Activities,534.71,TM -VANCOUVER CANUCKS
FCOGPC20150600001,05/06/2015,"COLLEGES, UNIV, PRO SCHOOLS, JUNIOR COLLEGES",GBR,Training and Educational,538.8,BPP PROF EDUCATION
FCOGPC20150600001,05/06/2015,MISCELLANEOUS PUBLISHING AND PRINTING,PHL,Print and advertising,541.07,QVIVID PRINTING SERV
FCOGPC20150600001,05/06/2015,"EQUIP, FURNITURE, HOME FURNSHNGS STRS (EXCPT APPL)",GBR,General Retail and Wholesale,557.68,DIPLOMATIC MISSION
FCOGPC20150600001,05/06/2015,BUSINESS SERVICES-NOT ELSEWHERE CLASSIFIED,GBR,Miscellaneous Industrial/Commercial Supplies,576,UBIQUS UK LIMITED
FCOGPC20150600001,05/06/2015,DIRECT MARKETING-COMBINATION CATALOG/RETAIL MERCH.,TUR,General Retail and Wholesale,583.48,MURAT AL ALKAR DAGITIM
FCOGPC20150600001,05/06/2015,"EQUIP, FURNITURE, HOME FURNSHNGS STRS (EXCPT APPL)",GBR,General Retail and Wholesale,594.98,DIPLOMATIC MISSION
FCOGPC20150600001,05/06/2015,TRAVEL AGENCIES,ARM,Travel Agencies,596.25,VISA CONCORD URAL 2
FCOGPC20150600001,05/06/2015,AUTOMOTIVE TIRE STORES,KEN,"Vehicles, servicing and spares",609.92,SILVERSTONE TYR
FCOGPC20150600001,05/06/2015,ELECTRONIC SALES,ISL,General Retail and Wholesale,610.44,EINAR FARESTVEIT
FCOGPC20150600001,05/06/2015,"AUTO & TRUCK DLRS-SALES,SVC, REPRS,PRTS, & LEASING",USA,"Vehicles, servicing and spares",612.5,LINDSAY COLLISION CENT
FCOGPC20150600001,05/06/2015,MISC/AUTO/AIRCRAFT/FARM EQUIP NOT ELSEWHERE CLASS,CAN,"Vehicles, servicing and spares",620.77,BT MACFARLANE LTD
FCOGPC20150600001,05/06/2015,CONSTRUCTION MATERIALS NOT ELSEWHERE CLASSIFIED,TUR,Building Materials,655.75,FIMOB MIMARLIK TURIZM
FCOGPC20150600001,05/06/2015,STATIONERY/OFFICE SUPPLIES/PRINTING & WRITING PAP.,NLD,"Office Stationery, equipment and supplies",662.98,WWW.VIKING.DE/
FCOGPC20150600001,05/06/2015,DEPARTMENT STORES,PAK,General Retail and Wholesale,673.53,METRO ISLAMABAD
FCOGPC20150600001,05/06/2015,ELECTRONIC SALES,GBR,General Retail and Wholesale,674.4,RADIO ACTIVE COMMS
FCOGPC20150600001,05/06/2015,GOVERNMENT SERVICES-NOT ELSEWHERE CLASSIFIED,ZAF,Statutory Bodies,678.22,THUSO HOUSE REVENUE
FCOGPC20150600001,05/06/2015,BOOK STORES,THA,Books and Periodicals,697.22,THE POST PUBLISHING /
FCOGPC20150600001,05/06/2015,MISCELLANEOUS PUBLISHING AND PRINTING,NGA,Print and advertising,703.27,AROWOLO NIGERIA ENT
FCOGPC20150600001,05/06/2015,"COMMERCIAL ART, GRAPHICS, PHOTOGRAPHY",CAN,Print and advertising,706.79,SQ SEBASTIEN ROY PHOT
FCOGPC20150600001,05/06/2015,"HEALTH PRACTITIONERS, MEDICAL SRVCS-NOT ELSEWHERE",THA,Medical Supplies and Services,722.27,INTERNATIONAL SOS SERV
FCOGPC20150600001,05/06/2015,"UTLTS-ELCTRC, GAS, HEATING OIL, SANITARY, WATER",HRV,Utilities and Non Automotive Fuel,729.96,FINA 30101 ZAGREB
FCOGPC20150600001,05/06/2015,"AMUSEMENT PARKS,CARNIVALS,CIRCUS,FORTUNE TELLERS",CAN,Leisure Activities,732.09,LOCATION FESTI-FETES
FCOGPC20150600001,05/06/2015,MISCELLANEOUS PUBLISHING AND PRINTING,PHL,Print and advertising,744.57,QVIVID PRINTING SERV
FCOGPC20150600001,05/06/2015,AUTOMOBILE ASSOCIATIONS,KEN,Clubs/Associations/Organisations,772.27,AUTO ASSURED LI
FCOGPC20150600001,05/06/2015,"AUTO & TRUCK DLRS-SALES,SVC, REPRS,PRTS, & LEASING",CHE,"Vehicles, servicing and spares",780.01,GARAGE DES AILES
FCOGPC20150600001,05/06/2015,"DETECTVE/PROTECTVE AGNCY,SECURITY SRVS, ARMOR CARS",ZAF,Personal Services,807.91,SECURITY OBSERV 5681
FCOGPC20150600001,05/06/2015,AUTOMOTIVE SERVICE SHOPS,MEX,"Vehicles, servicing and spares",826.66,BRITANIA MOTORS CUAJIM
FCOGPC20150600001,05/06/2015,"INSURANCE SALES,UNDERWRITING,AND PREMIUMS",JAM,Financial Services,839.62,MARATHON INSURANCE BRO
FCOGPC20150600001,05/06/2015,"AUTO & TRUCK DLRS-SALES,SVC, REPRS,PRTS, & LEASING",KEN,"Vehicles, servicing and spares",870.86,RMA MOTORS (KEN
FCOGPC20150600001,05/06/2015,AUTOMOBILE PARKING LOTS AND GARAGES,USA,General Retail and Wholesale,878.6,WTC DENVER MONTHLY PKG
FCOGPC20150600001,05/06/2015,BUSINESS SERVICES-NOT ELSEWHERE CLASSIFIED,RUS,Miscellaneous Industrial/Commercial Supplies,881.32,GREIYEKSPRESS
FCOGPC20150600001,05/06/2015,"MISC FOOD STORE-CONVENIENCE,MRKT,SPLTY,VENDNG MACS",GRC,Catering and Catering Supplies,888.62,ATFLYA EPE
FCOGPC20150600001,05/06/2015,PROFESSIONAL SERVICES-NOT ELSEWHERE CLASSIFIED,VIR,Professional Services,906.25,CARIBBEAN INSURERS HEA
FCOGPC20150600001,05/06/2015,"DETECTVE/PROTECTVE AGNCY,SECURITY SRVS, ARMOR CARS",KEN,Personal Services,955.62,G4S SECURITY SE
FCOGPC20150600001,05/06/2015,"DETECTVE/PROTECTVE AGNCY,SECURITY SRVS, ARMOR CARS",ZAF,Personal Services,961.07,SECURITY OBSERV 5681
FCOGPC20150600001,05/06/2015,CONSTRUCTION MATERIALS NOT ELSEWHERE CLASSIFIED,TUR,Building Materials,"1,000.73",FIMOB MIMARLIK TURIZM
FCOGPC20150600001,05/06/2015,"AUTO & TRUCK DLRS-SALES,SVC, REPRS,PRTS, & LEASING",USA,"Vehicles, servicing and spares","1,006.94",LINDSAY COLLISION CENT
FCOGPC20150600001,05/06/2015,"THEATRICAL PRODUCERS(EXCL MOTION PIX),TICKET AGNCY",CAN,Leisure Activities,"1,083.55",TM -VANCOUVER CANUCKS
FCOGPC20150600001,05/06/2015,BUSINESS SERVICES-NOT ELSEWHERE CLASSIFIED,RUS,Miscellaneous Industrial/Commercial Supplies,"1,174.06",GREIYEKSPRESS
FCOGPC20150600001,05/06/2015,BUSINESS SERVICES-NOT ELSEWHERE CLASSIFIED,RUS,Miscellaneous Industrial/Commercial Supplies,"1,174.06",GREIYEKSPRESS
FCOGPC20150600001,05/06/2015,MISCELLANEOUS PUBLISHING AND PRINTING,USA,Print and advertising,"1,181.49",CUSTOMTES.COM
FCOGPC20150600001,05/06/2015,BOOK STORES,GBR,Books and Periodicals,"1,350",BRITISH LIBRARY-ONLINE
FCOGPC20150600001,05/06/2015,"OFFICE, SCHOOL SUPPLY, AND STATIONERY STORES",JAM,"Office Stationery, equipment and supplies","1,382.69",STATIONERY & OFFICE SU
FCOGPC20150600001,05/06/2015,"GROCERY STORES, SUPERMARKETS",ESP,General Retail and Wholesale,"1,420.77",LA GRAN DESPENSA
FCOGPC20150600001,05/06/2015,DIRECT MARKETING-OTHER DIRECT MARKETERS/NOT ELSEW.,AUT,Mail Order / Direct Selling,"1,733.51",CLUB DER ABSOLVENTINNE
FCOGPC20150600001,05/06/2015,AUTOMOBILE RENTAL AGENCY-NOT ELSEWHERE CLASSIFIED,GBR,Auto rental,"3,033.62",TRAVELHIRE
FCOGPC20150600001,06/06/2015,"AUTO & TRUCK DLRS-SALES,SVC, REPRS,PRTS, & LEASING",ZAF,"Vehicles, servicing and spares",739.8,IMPERIAL NELSPRUI
FCOGPC20150600001,06/06/2015,TRAVEL,ESP,Airline,855.62,AIRLINE
FCOGPC20150600001,06/06/2015,"AUTO & TRUCK DLRS-SALES,SVC, REPRS,PRTS, & LEASING",ZAF,"Vehicles, servicing and spares",963.12,LANDROVER NELSPRUI
FCOGPC20150600001,06/06/2015,"PACKAGE STORES, BEER, WINE, LIQUOR",TCA,General Retail and Wholesale,"1,119.49",GRAND TURK LIQUORS
FCOGPC20150600001,07/06/2015,"AUTO & TRUCK DLRS-SALES,SVC, REPRS,PRTS, & LEASING",QAT,"Vehicles, servicing and spares",576.16,TEYSEER MOTORS GARAGE
FCOGPC20150600001,07/06/2015,HOTELS/MOTELS/RESORTS ,CYM,Hotels,631.42,ACCOMODATION SUPPLIER
FCOGPC20150600001,07/06/2015,"ORGANIZATIONS, MEMBERSHIP-NOT ELSEWHERE CLASSIFIED",USA,Clubs/Associations/Organisations,776.8,ACFE
FCOGPC20150600001,07/06/2015,HOTELS/MOTELS/RESORTS ,ARE,Hotels,895.62,ACCOMODATION SUPPLIER
FCOGPC20150600001,07/06/2015,HOTELS/MOTELS/RESORTS ,CYM,Hotels,"1,368.09",ACCOMODATION SUPPLIER
FCOGPC20150600001,07/06/2015,HOTELS/MOTELS/RESORTS ,CYM,Hotels,"1,368.09",ACCOMODATION SUPPLIER
FCOGPC20150600001,07/06/2015,HOTELS/MOTELS/RESORTS ,CYM,Hotels,"1,368.09",ACCOMODATION SUPPLIER
FCOGPC20150600001,07/06/2015,HOTELS/MOTELS/RESORTS ,CYM,Hotels,"1,473.33",ACCOMODATION SUPPLIER
FCOGPC20150600001,07/06/2015,HOTELS/MOTELS/RESORTS ,CYM,Hotels,"1,473.33",ACCOMODATION SUPPLIER
FCOGPC20150600001,07/06/2015,HOTELS/MOTELS/RESORTS ,CYM,Hotels,"1,473.33",ACCOMODATION SUPPLIER
FCOGPC20150600001,07/06/2015,HOTELS/MOTELS/RESORTS ,CYM,Hotels,"1,473.33",ACCOMODATION SUPPLIER
FCOGPC20150600001,07/06/2015,HOTELS/MOTELS/RESORTS ,CYM,Hotels,"1,479.38",ACCOMODATION SUPPLIER
FCOGPC20150600001,08/06/2015,ADVERTISING SERVICES,PAK,Print and advertising,515.81,PANGRAPHICS PVT LTD
FCOGPC20150600001,08/06/2015,"BRIDGE AND ROAD FEES, TOLLS",ZAF,Travel - Air/Rail/Road,517.98,SC 01 RIGE
FCOGPC20150600001,08/06/2015,"INSURANCE SALES,UNDERWRITING,AND PREMIUMS",BHR,Financial Services,522.67,AXA INSURANCE
FCOGPC20150600001,08/06/2015,OFFICE PHOTOGRAPHIC PHOTOCOPY & MICROFILM EQUIPMT.,ROM,"Office Stationery, equipment and supplies",530.51,SACU DESIGN
FCOGPC20150600001,08/06/2015,HOTELS/MOTELS/RESORTS ,LCA,Hotels,535.25,ACCOMODATION SUPPLIER
FCOGPC20150600001,08/06/2015,ELECTRONIC SALES,ISR,General Retail and Wholesale,581.05,A SBITANY AND SONS CO
FCOGPC20150600001,08/06/2015,OFFICE AND COMMERCIAL FURNITURE,ZMB,"Office Stationery, equipment and supplies",599.45,SOUTHGATE INVESTMENTS
FCOGPC20150600001,08/06/2015,BAKERIES,EGY,Catering and Catering Supplies,613.87,NOLA CUPCAKES
FCOGPC20150600001,08/06/2015,MEN'S AND BOY'S CLOTHING AND ACCESSORIES STORES,BRA,General Retail and Wholesale,621.47,BORELLI
FCOGPC20150600001,08/06/2015,MISCELLANEOUS GENERAL MERCHANDISE,ITA,General Retail and Wholesale,665.91,FERRAMENTA MESSINA
FCOGPC20150600001,08/06/2015,TELECOMMUNICATION EQUIPMENT INCL TELEPHONE SALES,TUR,Telecommunication Services,666.95,DB MAGAZACILIK A.S
FCOGPC20150600001,08/06/2015,"EQUIP, FURNITURE, HOME FURNSHNGS STRS (EXCPT APPL)",ITA,General Retail and Wholesale,671.03,WWW.IKEA.COM
FCOGPC20150600001,08/06/2015,BAKERIES,MAR,Catering and Catering Supplies,691.19,MAYMANA
FCOGPC20150600001,08/06/2015,"OPTICIANS,OPTICAL GOODS & EYEGLASSES",MAR,Medical Supplies and Services,711.68,RAYON OPTIQUE
FCOGPC20150600001,08/06/2015,ADVERTISING SERVICES,PAK,Print and advertising,719.5,PANGRAPHICS PVT LTD
FCOGPC20150600001,08/06/2015,"COMPUTERS, COMPUTER PERIPHERAL EQUIPMENT, SOFTWARE",TUR,Computer Equipment & Services,740.79,BIMEKS BILGI ISL.VE DI
FCOGPC20150600001,08/06/2015,DAIRY PRODUCTS STORES,FRA,Catering and Catering Supplies,762.01,FERME D'ALEX
FCOGPC20150600001,08/06/2015,DAIRY PRODUCTS STORES,FRA,Catering and Catering Supplies,773.05,FERME D'ALEX
FCOGPC20150600001,08/06/2015,TRAVEL,IND,Airline,785.28,AIRLINE
FCOGPC20150600001,08/06/2015,ELECTRONIC SALES,ISR,General Retail and Wholesale,785.82,A SBITANY AND SONS CO
FCOGPC20150600001,08/06/2015,BOOK STORES,LUX,Books and Periodicals,794.65,AMAZON DE MARKETPLACE
FCOGPC20150600001,08/06/2015,TRAVEL,CAN,Airline,798.6,AIRLINE
FCOGPC20150600001,08/06/2015,MISCELLANEOUS AND SPECIALTY RETAIL STORES,FIN,General Retail and Wholesale,810.54,PEMIC OY
FCOGPC20150600001,08/06/2015,DEPARTMENT STORES,QAT,General Retail and Wholesale,835.88,HOME CENTRE
FCOGPC20150600001,08/06/2015,"UTLTS-ELCTRC, GAS, HEATING OIL, SANITARY, WATER",ZWE,Utilities and Non Automotive Fuel,844.87,CLARES WATER
FCOGPC20150600001,08/06/2015,DEPARTMENT STORES,HKG,General Retail and Wholesale,864.4,THE WING ON DEPT STORE
FCOGPC20150600001,08/06/2015,DEPARTMENT STORES,QAT,General Retail and Wholesale,918.96,HOME CENTRE
FCOGPC20150600001,08/06/2015,"EATING PLACES, RESTAURANTS",SRB,Restuarants and Bars,927.55,ELITE FOOD & SERVICE
FCOGPC20150600001,08/06/2015,PROFESSIONAL SERVICES-NOT ELSEWHERE CLASSIFIED,POL,Professional Services,964.36,MIX OFFICE
FCOGPC20150600001,08/06/2015,"EQUIP, FURNITURE, HOME FURNSHNGS STRS (EXCPT APPL)",PAK,General Retail and Wholesale,975.69,ARIF BROS
FCOGPC20150600001,08/06/2015,DEPARTMENT STORES,HKG,General Retail and Wholesale,983.4,THE WING ON DEPT STORE
FCOGPC20150600001,08/06/2015,DIRECT MARKETING-COMBINATION CATALOG/RETAIL MERCH.,USA,General Retail and Wholesale,990.78,WAYFAIR WAYFAIR
FCOGPC20150600001,08/06/2015,PROFESSIONAL SERVICES-NOT ELSEWHERE CLASSIFIED,GBR,Professional Services,"1,057.24",WWW.CBBC.ORG
FCOGPC20150600001,08/06/2015,CATERERS,USA,Catering and Catering Supplies,"1,074.36",CATERING BY CULINAIRE
FCOGPC20150600001,08/06/2015,TRAVEL,USA,Airline,"1,166.36",AIRLINE
FCOGPC20150600001,08/06/2015,"ACCOUNTING, AUDITING AND BOOKKEEPING SERVICES",GBR,Professional Services,"1,170",CHARTERED INSTITUTE OF
FCOGPC20150600001,08/06/2015,"PACKAGE STORES, BEER, WINE, LIQUOR",LVA,General Retail and Wholesale,"1,172.20",RIGA SPIRITS & WINE OU
FCOGPC20150600001,08/06/2015,FAST FOOD RESTAURANTS,RUS,Restuarants and Bars,"1,193.27",LOBBI BAR
FCOGPC20150600001,08/06/2015,FAST FOOD RESTAURANTS,RUS,Restuarants and Bars,"1,193.27",LOBBI BAR
FCOGPC20150600001,08/06/2015,DIRECT MARKETING-COMBINATION CATALOG/RETAIL MERCH.,USA,General Retail and Wholesale,"1,209.15",WAYFAIR WAYFAIR
FCOGPC20150600001,08/06/2015,FAST FOOD RESTAURANTS,RUS,Restuarants and Bars,"1,252.93",LOBBI BAR
FCOGPC20150600001,08/06/2015,"AUTO & TRUCK DLRS-SALES,SVC, REPRS,PRTS, & LEASING",ZWE,"Vehicles, servicing and spares","1,258.28",PREMIER AUTO SERVICES
FCOGPC20150600001,08/06/2015,DIRECT MARKETING-COMBINATION CATALOG/RETAIL MERCH.,USA,General Retail and Wholesale,"1,259.30",WAYFAIR WAYFAIR
FCOGPC20150600001,08/06/2015,"MISC FOOD STORE-CONVENIENCE,MRKT,SPLTY,VENDNG MACS",ITA,Catering and Catering Supplies,"1,301.59",AGRICENTROARICCIA
FCOGPC20150600001,08/06/2015,DIRECT MARKETING-COMBINATION CATALOG/RETAIL MERCH.,USA,General Retail and Wholesale,"1,331.40",WAYFAIR WAYFAIR
FCOGPC20150600001,08/06/2015,TELECOM INCL PREPAID/RECURRING PHONE SVCS,LCA,Telecommunication Services,"1,433.51",CABLE & WIRELESS C'BBE
FCOGPC20150600001,08/06/2015,"EQUIP, FURNITURE, HOME FURNSHNGS STRS (EXCPT APPL)",ITA,General Retail and Wholesale,"1,476.71",DITTA BALDUCCI MAURO
FCOGPC20150600001,08/06/2015,"CLEANING AND MAINTENANCE, JANITORIAL SERVICES",DEU,Cleaning Services and Supplies,"1,514.24",PLVOLIVER LERCH TEPPIC
FCOGPC20150600001,08/06/2015,HOTELS/MOTELS/RESORTS ,GBR,Hotels,"2,188.50",ACCOMODATION SUPPLIER
FCOGPC20150600001,09/06/2015,ENTERPRISE RENT-A-CAR,DEU,Auto rental,509.39,ENTERPRISE RENT-A-C
FCOGPC20150600001,09/06/2015,MISCELLANEOUS PUBLISHING AND PRINTING,GBR,Print and advertising,513.29,G4S SECURE
FCOGPC20150600001,09/06/2015,HOME SUPPLY WAREHOUSE STORES,QZZ,General Retail and Wholesale,539.06,GJINI
FCOGPC20150600001,09/06/2015,ELECTRICAL CONTRACTORS,JAM,Building Services,548.19,L S DUHANEY & CO LTD
FCOGPC20150600001,09/06/2015,HOTELS/MOTELS/RESORTS ,LCA,Hotels,571.33,ACCOMODATION SUPPLIER
FCOGPC20150600001,09/06/2015,MISCELLANEOUS PUBLISHING AND PRINTING,GBR,Print and advertising,591.48,G4S SECURE
FCOGPC20150600001,09/06/2015,HARDWARE EQUIPMENT AND SUPPLIES,GBR,Miscellaneous Industrial/Commercial Supplies,594,CIAP CONSTRUCTION LTD
FCOGPC20150600001,09/06/2015,AUTOMOTIVE SERVICE SHOPS,IRL,"Vehicles, servicing and spares",596.1,CROFTON MOTORS LTD
FCOGPC20150600001,09/06/2015,FLORISTS,MLT,Estate and garden Services,598.85,CENTRAL FLOWER SHOP
FCOGPC20150600001,09/06/2015,"GROCERY STORES, SUPERMARKETS",ISL,General Retail and Wholesale,614.61,STORKAUP
FCOGPC20150600001,09/06/2015,MOTOR VEHICLE SUPPLIES AND NEW PARTS,GBR,"Vehicles, servicing and spares",622.21,TEAM LEYLAND INTERNATI
FCOGPC20150600001,09/06/2015,TELECOM INCL PREPAID/RECURRING PHONE SVCS,ARM,Telecommunication Services,679.13,BEELINE AMIRYAN
FCOGPC20150600001,09/06/2015,"GROCERY STORES, SUPERMARKETS",JPN,General Retail and Wholesale,693.06,NISSIN WORLD DELIC
FCOGPC20150600001,09/06/2015,MISCELLANEOUS AND SPECIALTY RETAIL STORES,ITA,General Retail and Wholesale,740.06,PRATIFLEX
FCOGPC20150600001,09/06/2015,BUSINESS SERVICES-NOT ELSEWHERE CLASSIFIED,GBR,Miscellaneous Industrial/Commercial Supplies,741.6,UBIQUS UK LIMITED
FCOGPC20150600001,09/06/2015,"COURIER SVC-AIR & GROUND, FREIGHT FORWARDERS",ISR,Mail and Courier Services,847.31,ROTERO HOVALA
FCOGPC20150600001,09/06/2015,"AUTO & TRUCK DLRS-SALES,SVC, REPRS,PRTS, & LEASING",LBN,"Vehicles, servicing and spares",852.9,MANA
FCOGPC20150600001,09/06/2015,"EQUIP, FURNITURE, HOME FURNSHNGS STRS (EXCPT APPL)",ITA,General Retail and Wholesale,875.51,IKEA ROMA  054
FCOGPC20150600001,09/06/2015,GENERAL CONTRACTORS/RESIDENTIAL BUILDINGS,JOR,Building Services,944.68,ETLAD FOR CONTRACTING
FCOGPC20150600001,09/06/2015,TRAVEL,MEX,Airline,975.67,AIRLINE
FCOGPC20150600001,09/06/2015,"BAR,LOUNGE,DISCO,NIGHTCLUB,TAVERN-ALCOHOLIC DRINKS",CHN,Restuarants and Bars,"1,021.90",THE HAPPY MONK TIANHE
FCOGPC20150600001,09/06/2015,HOTELS/MOTELS/RESORTS ,ZAF,Hotels,"1,070.04",ACCOMODATION SUPPLIER
FCOGPC20150600001,09/06/2015,TRAVEL,USA,Airline,"1,154.13",AIRLINE
FCOGPC20150600001,09/06/2015,CHILDREN'S AND INFANT'S WEAR STORES,ZAF,General Retail and Wholesale,"1,307.93",BABY BUZNIZ 5232
FCOGPC20150600001,09/06/2015,"UTLTS-ELCTRC, GAS, HEATING OIL, SANITARY, WATER",SRB,Utilities and Non Automotive Fuel,"1,338.05",EDB MASARIKOVA P.L.
FCOGPC20150600001,09/06/2015,"GROCERY STORES, SUPERMARKETS",JPN,General Retail and Wholesale,"1,351.99",NISSIN WORLD DELIC
FCOGPC20150600001,09/06/2015,"GROCERY STORES, SUPERMARKETS",JPN,General Retail and Wholesale,"1,351.99",NISSIN WORLD DELIC
FCOGPC20150600001,09/06/2015,"ATHLTIC FIELDS,COMMRCL SPRT,SPRT CLBS,SPRT PROMOTR",PAN,Leisure Activities,"2,198.17",TURISMO Y DEPORTE
FCOGPC20150600001,09/06/2015,HOTELS/MOTELS/RESORTS ,DNK,Hotels,"2,383.39",ACCOMODATION SUPPLIER
FCOGPC20150600001,09/06/2015,HOTELS/MOTELS/RESORTS ,DEU,Hotels,"3,026.81",ACCOMODATION SUPPLIER
FCOGPC20150600001,09/06/2015,HOTELS/MOTELS/RESORTS ,DEU,Hotels,"3,026.81",ACCOMODATION SUPPLIER
FCOGPC20150600001,10/06/2015,PROFESSIONAL SERVICES-NOT ELSEWHERE CLASSIFIED,BRB,Professional Services,507.39,PROFESSIONAL EXECUTIVE
FCOGPC20150600001,10/06/2015,TRAVEL AGENCIES,SAU,Travel Agencies,508.17,AL AHMADIAH TRAVEL
FCOGPC20150600001,10/06/2015,"GROCERY STORES, SUPERMARKETS",GRC,General Retail and Wholesale,510.56,MAKRO KIFISOU
FCOGPC20150600001,10/06/2015,TRAVEL AGENCIES,BOL,Travel Agencies,510.75,ROYAL TOURS SRL VIRTUA
FCOGPC20150600001,10/06/2015,AUTOMOBILE RENTAL AGENCY-NOT ELSEWHERE CLASSIFIED,JAM,Auto rental,513.12,ISLAND CAR RENTALS- H/
FCOGPC20150600001,10/06/2015,"INSURANCE SALES,UNDERWRITING,AND PREMIUMS",DOM,Financial Services,537.75,ARS HUMANO CHURCHILL
FCOGPC20150600001,10/06/2015,"CABLE, SATELLITE, OTHER PAY TELEVISION, RADIO SVCS",ITA,General Retail and Wholesale,558.93,SKY ITALIA
FCOGPC20150600001,10/06/2015,MISCELLANEOUS HOUSE FURNISHING SPECIALTY SHOPS,GBR,General Retail and Wholesale,579.64,ASHLEY WILDE GROUP
FCOGPC20150600001,10/06/2015,"EQUIPMENT RENTAL&LEASING SVS, FURNTURE/TOOL RENTAL",JAM,Miscellaneous Industrial/Commercial Supplies,618.7,M.C DECOR/RENTAL & SUP
FCOGPC20150600001,10/06/2015,GOVERNMENT SERVICES-NOT ELSEWHERE CLASSIFIED,GBR,Statutory Bodies,633,DEPARTMENT OF WORKING
FCOGPC20150600001,10/06/2015,BAKERIES,FRA,Catering and Catering Supplies,639.68,GOSSELIN SAINT HONOR
FCOGPC20150600001,10/06/2015,"AUTO & TRUCK DLRS-SALES,SVC, REPRS,PRTS, & LEASING",PHL,"Vehicles, servicing and spares",676.78,FORMULA SPORTS INC
FCOGPC20150600001,10/06/2015,"OFFICE, SCHOOL SUPPLY, AND STATIONERY STORES",GRC,"Office Stationery, equipment and supplies",678.67,DOCUSYS SA
FCOGPC20150600001,10/06/2015,CATERERS,CAN,Catering and Catering Supplies,703.8,GOODIES
FCOGPC20150600001,10/06/2015,WHOLESALE CLUBS,RUS,General Retail and Wholesale,723.83,METRO STORE 1013
FCOGPC20150600001,10/06/2015,INDUSTRIAL SUPPLIES NOT ELSEWHERE CLASSIFIED,MEX,Miscellaneous Industrial/Commercial Supplies,725.64,DISMAR EXTINTORES
FCOGPC20150600001,10/06/2015,DEPARTMENT STORES,ZAF,General Retail and Wholesale,785.84,MAKRO SILVER LAKES SBS
FCOGPC20150600001,10/06/2015,COMPUTER SOFTWARE STORES,KEN,Computer Equipment & Services,792.96,BYTECH ENGINEER
FCOGPC20150600001,10/06/2015,TELECOMMUNICATION EQUIPMENT INCL TELEPHONE SALES,ARG,Telecommunication Services,806.7,FUMIGADORA BARONI
FCOGPC20150600001,10/06/2015,"FREIGHT CARRIER,TRUCKING-LCL/LNG DIST, MVG/STORAGE",MEX,Freight and Storage,811.88,AUTO TRANS INTAL
FCOGPC20150600001,10/06/2015,"FREIGHT CARRIER,TRUCKING-LCL/LNG DIST, MVG/STORAGE",MEX,Freight and Storage,811.88,AUTO TRANS INTAL
FCOGPC20150600001,10/06/2015,"AUTOMOTIVE PARTS, ACCESSORIES STORES",PAK,"Vehicles, servicing and spares",866.74,NEW IRFAN AUTOS
FCOGPC20150600001,10/06/2015,DIRECT MARKETING-CATALOG MERCHANTS,JPN,Mail Order / Direct Selling,959.09,PURASUMAKUSUMAKETSUTOH
FCOGPC20150600001,10/06/2015,CATERERS,CAN,Catering and Catering Supplies,"1,075.62",GOODIES
FCOGPC20150600001,10/06/2015,FAST FOOD RESTAURANTS,ZAF,Restuarants and Bars,"1,092.77",APPETITE ON VAAL
FCOGPC20150600001,10/06/2015,"OFFICE, SCHOOL SUPPLY, AND STATIONERY STORES",GRC,"Office Stationery, equipment and supplies","1,124.50",DOCUSYS SA
FCOGPC20150600001,10/06/2015,"ASSOCIATIONS-CIVIC, SOCIAL, AND FRATERNAL",USA,Leisure Activities,"1,128.81",UNION LEAGUE ACCOUNTIN
FCOGPC20150600001,10/06/2015,"SCHOOLS, TRADE AND VOCATIONAL",GBR,Training and Educational,"1,147.20",WWW.EVENTCOURSE.COM
FCOGPC20150600001,10/06/2015,MISCELLANEOUS GENERAL MERCHANDISE,JPN,General Retail and Wholesale,"1,183.17",NAGAYO HONSHA
FCOGPC20150600001,10/06/2015,AUTOMOTIVE SERVICE SHOPS,RUS,"Vehicles, servicing and spares","1,198.67",ES AUTOBIOGRAPHY-STO
FCOGPC20150600001,10/06/2015,HARDWARE STORES,GRC,General Retail and Wholesale,"1,253.64",KIOURTZOGLOU SA
FCOGPC20150600001,10/06/2015,"OFFICE, SCHOOL SUPPLY, AND STATIONERY STORES",GBR,"Office Stationery, equipment and supplies","1,263",MARTIN YALE INTERNATIO
FCOGPC20150600001,10/06/2015,HOTELS/MOTELS/RESORTS ,USA,Hotels,"1,326.85",ACCOMODATION SUPPLIER
FCOGPC20150600001,10/06/2015,HOTELS/MOTELS/RESORTS ,PAN,Hotels,"1,456.62",ACCOMODATION SUPPLIER
FCOGPC20150600001,10/06/2015,MISCELLANEOUS REPAIR SHOPS AND RELATED SERVICES,URY,Miscellaneous Industrial/Commercial Supplies,"2,094.12",CERRAJERIA ABELENDA HN
FCOGPC20150600001,11/06/2015,FLORISTS,GRC,Estate and garden Services,528.71,VALKANOS AND SIA OE PE
FCOGPC20150600001,11/06/2015,HOTELS/MOTELS/RESORTS ,NGA,Hotels,533.11,ACCOMODATION SUPPLIER
FCOGPC20150600001,11/06/2015,FAMILY CLOTHING STORES,TUR,General Retail and Wholesale,537.67,MAVI GIYIM YENISEHIR/K
FCOGPC20150600001,11/06/2015,MISCELLANEOUS AND SPECIALTY RETAIL STORES,USA,General Retail and Wholesale,546.5,AAA FLAG AND BANNER
FCOGPC20150600001,11/06/2015,OFFICE PHOTOGRAPHIC PHOTOCOPY & MICROFILM EQUIPMT.,AZE,"Office Stationery, equipment and supplies",547.74,POS UNI XEROX MERKEZI
FCOGPC20150600001,11/06/2015,"AUTO & TRUCK DLRS-SALES,SVC, REPRS,PRTS, & LEASING",GBR,"Vehicles, servicing and spares",552,PARK LANE LTD
FCOGPC20150600001,11/06/2015,BUSINESS SERVICES-NOT ELSEWHERE CLASSIFIED,FIN,Miscellaneous Industrial/Commercial Supplies,556.73,IZ SAHKO-HAKALA O
FCOGPC20150600001,11/06/2015,DIRECT MARKETING-COMBINATION CATALOG/RETAIL MERCH.,SGP,General Retail and Wholesale,563.07,INDOGUNA S'PTE LTD
FCOGPC20150600001,11/06/2015,"COMPUTERS, COMPUTER PERIPHERAL EQUIPMENT, SOFTWARE",BRA,Computer Equipment & Services,567.37,VIA DIGITAL INFORMATIC
FCOGPC20150600001,11/06/2015,LIMOUSINES AND TAXICABS,USA,Travel - Air/Rail/Road,572.46,RESTON LIMOUSINE AND T
FCOGPC20150600001,11/06/2015,TRAVEL AGENCIES,RUS,Travel Agencies,583.55,BTI RUSSIA-8
FCOGPC20150600001,11/06/2015,"ORGANIZATIONS, MEMBERSHIP-NOT ELSEWHERE CLASSIFIED",GBR,Clubs/Associations/Organisations,588,WWW.BRITSAFE.ORG
FCOGPC20150600001,11/06/2015,BUSINESS SERVICES-NOT ELSEWHERE CLASSIFIED,GBR,Miscellaneous Industrial/Commercial Supplies,597.6,UBIQUS UK LIMITED
FCOGPC20150600001,11/06/2015,"MISC FOOD STORE-CONVENIENCE,MRKT,SPLTY,VENDNG MACS",ITA,Catering and Catering Supplies,614.5,NORCIMERIA UMBRA
FCOGPC20150600001,11/06/2015,MISCELLANEOUS GENERAL MERCHANDISE,SYC,General Retail and Wholesale,617.3,ISPC (SEYCHELLE
FCOGPC20150600001,11/06/2015,"AUTOMOTIVE PARTS, ACCESSORIES STORES",BRA,"Vehicles, servicing and spares",668.14,WIDMEN
FCOGPC20150600001,11/06/2015,TELECOMMUNICATION EQUIPMENT INCL TELEPHONE SALES,NZL,Telecommunication Services,680.09,VODAFONE LAMBTON QUAY
FCOGPC20150600001,11/06/2015,PROFESSIONAL SERVICES-NOT ELSEWHERE CLASSIFIED,GBR,Professional Services,714,CIVIL SERVICE LEARNING
FCOGPC20150600001,11/06/2015,"ORGANIZATIONS, MEMBERSHIP-NOT ELSEWHERE CLASSIFIED",GBR,Clubs/Associations/Organisations,714,INFORMATION TECHNOLOGY
FCOGPC20150600001,11/06/2015,VARIETY STORES,TZA,General Retail and Wholesale,716.18,RATO GENERAL TRADERS
FCOGPC20150600001,11/06/2015,ELECTRONIC SALES,JOR,General Retail and Wholesale,730.38,ABU ABDOALSHAMI
FCOGPC20150600001,11/06/2015,BUS LINES,AUS,Travel - Air/Rail/Road,732.29,MURRAYS AUSTRALIA PTY
FCOGPC20150600001,11/06/2015,POSTAL SERVICES-GOVERNMENT ONLY,LVA,Mail and Courier Services,745.68,RIGAS 10. PASTA NODALA
FCOGPC20150600001,11/06/2015,HOUSEHOLD APPLIANCE STORES,GRC,General Retail and Wholesale,825.55,SMART TECH
FCOGPC20150600001,11/06/2015,"CANDY, NUT, CONFECTIONERY STORES",JOR,Catering and Catering Supplies,842.74,ZALATIMO SWEETS CO.
FCOGPC20150600001,11/06/2015,HOTELS/MOTELS/RESORTS ,RUS,Hotels,855.1,ACCOMODATION SUPPLIER
FCOGPC20150600001,11/06/2015,COMPUTER SOFTWARE STORES,ISR,Computer Equipment & Services,859.64,ALFA .A COMPUTERS LTD
FCOGPC20150600001,11/06/2015,"BUILDING MATERIALS, LUMBER STORES",JAM,Building Materials,884.2,DESIGN OPTIONS LIMITED
FCOGPC20150600001,11/06/2015,COMPUTER SOFTWARE STORES,ISR,Computer Equipment & Services,985.16,ALFA .A COMPUTERS LTD
FCOGPC20150600001,11/06/2015,MEDICAL AND DENTAL LABORATORIES,PHL,Medical Supplies and Services,992.45,HI-PRECISION - FORT BG
FCOGPC20150600001,11/06/2015,"EATING PLACES, RESTAURANTS",GBR,Restuarants and Bars,"1,000",OLD BENGAL WAREHOUSE
FCOGPC20150600001,11/06/2015,VARIETY STORES,TZA,General Retail and Wholesale,"1,066.70",RATO GENERAL TRADERS
FCOGPC20150600001,11/06/2015,HOTELS/MOTELS/RESORTS ,CHN,Hotels,"1,070.68",ACCOMODATION SUPPLIER
FCOGPC20150600001,11/06/2015,HOTELS/MOTELS/RESORTS ,CHN,Hotels,"1,070.68",ACCOMODATION SUPPLIER
FCOGPC20150600001,11/06/2015,MISCELLANEOUS REPAIR SHOPS AND RELATED SERVICES,ITA,Miscellaneous Industrial/Commercial Supplies,"1,097.52",BELLORI RENATO SNC
FCOGPC20150600001,11/06/2015,HOTELS/MOTELS/RESORTS ,CHN,Hotels,"1,102.80",ACCOMODATION SUPPLIER
FCOGPC20150600001,11/06/2015,BUSINESS SERVICES-NOT ELSEWHERE CLASSIFIED,FIN,Miscellaneous Industrial/Commercial Supplies,"1,113.41",IZ SAHKO-HAKALA O
FCOGPC20150600001,11/06/2015,MOTION PICTURE/VIDEO TAPE PRODUCTION/DISTRIBUTION,USA,Miscellaneous Industrial/Commercial Supplies,"1,260.50","IN AK PRODUCTIONS, LL"
FCOGPC20150600001,11/06/2015,HOTELS/MOTELS/RESORTS ,USA,Hotels,"1,320.37",ACCOMODATION SUPPLIER
FCOGPC20150600001,11/06/2015,"EQUIP, FURNITURE, HOME FURNSHNGS STRS (EXCPT APPL)",JOR,General Retail and Wholesale,"1,404.57",S.E.T.I. JORDAN LTD
FCOGPC20150600001,11/06/2015,DIRECT MARKETING-OTHER DIRECT MARKETERS/NOT ELSEW.,MEX,Mail Order / Direct Selling,"1,446.44",GPO COMUNIC KATEDRA
FCOGPC20150600001,11/06/2015,TRAVEL,USA,Airline,"1,464.24",AIRLINE
FCOGPC20150600001,11/06/2015,"EQUIP, FURNITURE, HOME FURNSHNGS STRS (EXCPT APPL)",JOR,General Retail and Wholesale,"1,498.20",S.E.T.I. JORDAN LTD
FCOGPC20150600001,11/06/2015,CATERERS,CAN,Catering and Catering Supplies,"1,505.87",DISTINCTION
FCOGPC20150600001,11/06/2015,"EATING PLACES, RESTAURANTS",BIH,Restuarants and Bars,"1,718.76",KONOBA STANISIC
FCOGPC20150600001,11/06/2015,TRAVEL,GBR,Airline,"3,424.19",AIRLINE
FCOGPC20150600001,11/06/2015,TRAVEL,GBR,Airline,"4,044.76",AIRLINE
FCOGPC20150600001,11/06/2015,TRAVEL AGENCIES,VNM,Travel Agencies,"5,365.99",PHONG VE HANOI TOSERCO
FCOGPC20150600001,12/06/2015,METAL SERVICE CENTERS AND OFFICES,TUR,Miscellaneous Industrial/Commercial Supplies,503.87,ALUCOREX
FCOGPC20150600001,12/06/2015,PHOTOGRAPHIC STUDIOS,QZZ,Print and advertising,516.87,STUDIO FORMA NSH
FCOGPC20150600001,12/06/2015,GOVERNMENT SERVICES-NOT ELSEWHERE CLASSIFIED,GBR,Statutory Bodies,522.91,DEPARTMENT OF WORKING
FCOGPC20150600001,12/06/2015,"EQUIP, FURNITURE, HOME FURNSHNGS STRS (EXCPT APPL)",TUR,General Retail and Wholesale,549.63,MAPA MOBILYA VE AKSESU
FCOGPC20150600001,12/06/2015,SCHOOLS & EDUCATIONAL SVC-NOT ELSEWHERE CLASSIFIED,GBR,Training and Educational,554.76,PADI EMEA LTD. SEC
FCOGPC20150600001,12/06/2015,"EATING PLACES, RESTAURANTS",SVN,Restuarants and Bars,577.49,VIVO D.O.O.
FCOGPC20150600001,12/06/2015,"UTLTS-ELCTRC, GAS, HEATING OIL, SANITARY, WATER",VEN,Utilities and Non Automotive Fuel,579.55,CORPORACION DIGITEL CA
FCOGPC20150600001,12/06/2015,TRAVEL,POL,Airline,581.54,AIRLINE
FCOGPC20150600001,12/06/2015,MISCELLANEOUS HOUSE FURNISHING SPECIALTY SHOPS,USA,General Retail and Wholesale,600.64,WEST ELM E-COMMERCE
FCOGPC20150600001,12/06/2015,CONSTRUCTION MATERIALS NOT ELSEWHERE CLASSIFIED,TUR,Building Materials,602.92,FIMOB MIMARLIK TURIZM
FCOGPC20150600001,12/06/2015,TRAVEL,POL,Airline,614.25,AIRLINE
FCOGPC20150600001,12/06/2015,"PACKAGE STORES, BEER, WINE, LIQUOR",SLV,General Retail and Wholesale,620.91,DRINK IT
FCOGPC20150600001,12/06/2015,MISCELLANEOUS PUBLISHING AND PRINTING,AUS,Print and advertising,629.49,VISUAL CHOICE DISPLAYS
FCOGPC20150600001,12/06/2015,TRAVEL AGENCIES,AUS,Travel Agencies,647.2,1300FLIGHTCENTREQUEEN
FCOGPC20150600001,12/06/2015,"EQUIP, FURNITURE, HOME FURNSHNGS STRS (EXCPT APPL)",GBR,General Retail and Wholesale,728.48,DIPLOMATIC MISSION
FCOGPC20150600001,12/06/2015,"FURNITURE-REUPHOLSTERY AND REPAIR, REFINISHING",NGA,Miscellaneous Industrial/Commercial Supplies,742.22,SURAJ INVESTMENTS LIMI
FCOGPC20150600001,12/06/2015,"EATING PLACES, RESTAURANTS",AUT,Restuarants and Bars,787.52,WEINGUT SCHAFLERHOF
FCOGPC20150600001,12/06/2015,TOURIST ATTRACTIONS AND EXHIBITS,AUS,Leisure Activities,842.34,INFORMA AUSTRALIA
FCOGPC20150600001,12/06/2015,SCHOOLS & EDUCATIONAL SVC-NOT ELSEWHERE CLASSIFIED,BRA,Training and Educational,868.97,STUDIOCLIO
FCOGPC20150600001,12/06/2015,BUSINESS SERVICES-NOT ELSEWHERE CLASSIFIED,MEX,Miscellaneous Industrial/Commercial Supplies,872.77,EXPO GUADALAJARA I
FCOGPC20150600001,12/06/2015,"MISC FOOD STORE-CONVENIENCE,MRKT,SPLTY,VENDNG MACS",AUT,Catering and Catering Supplies,909.84,METRO 1110
FCOGPC20150600001,12/06/2015,MISCELLANEOUS HOUSE FURNISHING SPECIALTY SHOPS,USA,General Retail and Wholesale,950.22,WEST ELM E-COMMERCE
FCOGPC20150600001,12/06/2015,AUTOMOBILE PARKING LOTS AND GARAGES,USA,General Retail and Wholesale,950.67,SUTTER STOCKTON GARAGE
FCOGPC20150600001,12/06/2015,"QUICK COPY,REPRODUCTION AND BLUEPRINTING SERVICES",USA,"Office Stationery, equipment and supplies",970.03,PRINTING SOLUTIONS
FCOGPC20150600001,12/06/2015,HOTELS/MOTELS/RESORTS ,KEN,Hotels,"1,044.61",ACCOMODATION SUPPLIER
FCOGPC20150600001,12/06/2015,HOTELS/MOTELS/RESORTS ,KEN,Hotels,"1,045.16",ACCOMODATION SUPPLIER
FCOGPC20150600001,12/06/2015,COMPUTER NETWORK/INFORMATION SERVICES,DNK,Computer Equipment & Services,"1,061.68",PROSHOPDK
FCOGPC20150600001,12/06/2015,MISCELLANEOUS REPAIR SHOPS AND RELATED SERVICES,SRB,Miscellaneous Industrial/Commercial Supplies,"1,102.43",POMEC DOO BEOGRAD
FCOGPC20150600001,12/06/2015,"MISC FOOD STORE-CONVENIENCE,MRKT,SPLTY,VENDNG MACS",AUT,Catering and Catering Supplies,"1,118.62",METRO 1110
FCOGPC20150600001,12/06/2015,MISCELLANEOUS PUBLISHING AND PRINTING,GBR,Print and advertising,"1,173.11",G4S SECURE
FCOGPC20150600001,12/06/2015,OTHER SERVICES (NOT ELSEWHERE CLASSIFIED),USA,Professional Services,"1,223.99",BIG RED BUS
FCOGPC20150600001,12/06/2015,PROFESSIONAL SERVICES-NOT ELSEWHERE CLASSIFIED,BRB,Professional Services,"1,291.19",PROFESSIONAL EXECUTIVE
FCOGPC20150600001,12/06/2015,"FREIGHT CARRIER,TRUCKING-LCL/LNG DIST, MVG/STORAGE",TUR,Freight and Storage,"1,326.03",ESEN ULUSLARARASI NA
FCOGPC20150600001,12/06/2015,PROFESSIONAL SERVICES-NOT ELSEWHERE CLASSIFIED,BRB,Professional Services,"1,378.44",PROFESSIONAL EXECUTIVE
FCOGPC20150600001,12/06/2015,HOTELS/MOTELS/RESORTS ,SLV,Hotels,"1,402.65",ACCOMODATION SUPPLIER
FCOGPC20150600001,12/06/2015,AIR CONDITIONING AND REFRIGERATION REPAIR SHOPS,ARG,Building Services,"1,461.81",ITERM SRL
FCOGPC20150600001,12/06/2015,PROFESSIONAL SERVICES-NOT ELSEWHERE CLASSIFIED,BRB,Professional Services,"1,463.74",PROFESSIONAL EXECUTIVE
FCOGPC20150600001,13/06/2015,"CLUBS-CNTRY,MBRSHIP(ATHLET,REC,SPRTS,PRIVATE GOLF",SLV,Leisure Activities,623.63,EL ENCANTO VILLAS Y GO
FCOGPC20150600001,13/06/2015,ELECTRONIC SALES,ARE,General Retail and Wholesale,"1,042.14",MAX ELECTRONICS LLC
FCOGPC20150600001,13/06/2015,BICYCLE SHOPS-SALES AND SERVICE,IDN,General Retail and Wholesale,"1,328.36",MJ BIKE
FCOGPC20150600001,14/06/2015,"EQUIP, FURNITURE, HOME FURNSHNGS STRS (EXCPT APPL)",ARE,General Retail and Wholesale,539.22,AL FUTTAIM TRDG - IKEA
FCOGPC20150600001,14/06/2015,BAKERIES,EGY,Catering and Catering Supplies,607,NOLA CUPCAKES
FCOGPC20150600001,14/06/2015,"EATING PLACES, RESTAURANTS",SVN,Restuarants and Bars,628.15,OPALDAR D.O.O.
FCOGPC20150600001,14/06/2015,TRAVEL,BRA,Airline,745.16,AIRLINE
FCOGPC20150600001,14/06/2015,"AUTOMOTIVE PARTS, ACCESSORIES STORES",KWT,"Vehicles, servicing and spares",812.34,AL ZAYED CO.
FCOGPC20150600001,14/06/2015,"ALTERATIONS, MENDING, SEAMSTRESSES, TAILORS",BGD,General Retail and Wholesale,877.83,CHOYONIKA TAILORS
FCOGPC20150600001,14/06/2015,"GLASS, PAINT, WALLPAPER STORES",AFG,Building Materials,961.23,ARGHAWAN PAINT STORE
FCOGPC20150600001,14/06/2015,HOTELS/MOTELS/RESORTS ,ARE,Hotels,"1,036.75",ACCOMODATION SUPPLIER
FCOGPC20150600001,14/06/2015,"UTLTS-ELCTRC, GAS, HEATING OIL, SANITARY, WATER",JOR,Utilities and Non Automotive Fuel,"1,164.99",SUHAIL ABU GHAZALEH PA
FCOGPC20150600001,15/06/2015,"GROCERY STORES, SUPERMARKETS",MAR,General Retail and Wholesale,503.47,LE MONDE DU BRICOLAGE
FCOGPC20150600001,15/06/2015,BUSINESS SERVICES-NOT ELSEWHERE CLASSIFIED,USA,Miscellaneous Industrial/Commercial Supplies,528.97,CSC US EMBASSY MRV FEE
FCOGPC20150600001,15/06/2015,HOUSEHOLD APPLIANCE STORES,CAN,General Retail and Wholesale,529.1,CORBEIL APPLIANCES
FCOGPC20150600001,15/06/2015,AUTOMOTIVE SERVICE SHOPS,RUS,"Vehicles, servicing and spares",535.64,ES AUTOBIOGRAPHY-STO
FCOGPC20150600001,15/06/2015,"BAR,LOUNGE,DISCO,NIGHTCLUB,TAVERN-ALCOHOLIC DRINKS",ESP,Restuarants and Bars,540.16,CATCAKES REPOSTERIA CR
FCOGPC20150600001,15/06/2015,MEN'S AND BOY'S CLOTHING AND ACCESSORIES STORES,TUN,General Retail and Wholesale,587.39,SGHAIER BASMA
FCOGPC20150600001,15/06/2015,"EATING PLACES, RESTAURANTS",AUT,Restuarants and Bars,606.05,KAESELAND
FCOGPC20150600001,15/06/2015,DIRECT MARKETING-CATALOG MERCHANTS,GBR,Mail Order / Direct Selling,631.56,STATIONERY OFFICE BOOK
FCOGPC20150600001,15/06/2015,HARDWARE EQUIPMENT AND SUPPLIES,IND,Miscellaneous Industrial/Commercial Supplies,639.58,MRA ENTERPRISES
FCOGPC20150600001,15/06/2015,METAL SERVICE CENTERS AND OFFICES,BRA,Miscellaneous Industrial/Commercial Supplies,651.36,MARIA R M PASSOS ME
FCOGPC20150600001,15/06/2015,"PACKAGE STORES, BEER, WINE, LIQUOR",AUT,General Retail and Wholesale,654.98,AMMERSIN
FCOGPC20150600001,15/06/2015,"EQUIP, FURNITURE, HOME FURNSHNGS STRS (EXCPT APPL)",BIH,General Retail and Wholesale,666.6,BEGEX DOO
FCOGPC20150600001,15/06/2015,HARDWARE STORES,VEN,General Retail and Wholesale,680.74,FERRETERIA CA RIAL
FCOGPC20150600001,15/06/2015,WHOLESALE CLUBS,RUS,General Retail and Wholesale,706.42,METRO STORE 1013
FCOGPC20150600001,15/06/2015,"MISC FOOD STORE-CONVENIENCE,MRKT,SPLTY,VENDNG MACS",AUT,Catering and Catering Supplies,706.5,METRO 1110
FCOGPC20150600001,15/06/2015,STAMP & COIN STORES-PHILATELIC & NUMISMATIC SUPPLY,NZL,General Retail and Wholesale,710.48,PITCAIRN ISLAND ADMIN
FCOGPC20150600001,15/06/2015,CUSTOMER FINCL INSTIT-MANUAL CASH DISBURSEMENTS,ISL,Cash,721.53,CASH-SKOTSILFUR L
FCOGPC20150600001,15/06/2015,"AUTOMOTIVE PARTS, ACCESSORIES STORES",AFG,"Vehicles, servicing and spares",726.21,AUTOMATIVE PARTS AND A
FCOGPC20150600001,15/06/2015,BOOK STORES,GBR,Books and Periodicals,763.91,BLACKWELLS
FCOGPC20150600001,15/06/2015,PROFESSIONAL SERVICES-NOT ELSEWHERE CLASSIFIED,GBR,Professional Services,794.4,CIVIL SERVICE LEARNING
FCOGPC20150600001,15/06/2015,"EATING PLACES, RESTAURANTS",PRT,Restuarants and Bars,820.31,AURA
FCOGPC20150600001,15/06/2015,"EATING PLACES, RESTAURANTS",PRT,Restuarants and Bars,823.28,AURA
FCOGPC20150600001,15/06/2015,"EATING PLACES, RESTAURANTS",PRT,Restuarants and Bars,830.72,AURA
FCOGPC20150600001,15/06/2015,AUTOMOTIVE SERVICE SHOPS,RUS,"Vehicles, servicing and spares",856.67,ES AUTOBIOGRAPHY-STO
FCOGPC20150600001,15/06/2015,"EQUIPMENT RENTAL&LEASING SVS, FURNTURE/TOOL RENTAL",ISL,Miscellaneous Industrial/Commercial Supplies,872.15,SKEMMTILEGT
FCOGPC20150600001,15/06/2015,"EQUIPMENT RENTAL&LEASING SVS, FURNTURE/TOOL RENTAL",ISL,Miscellaneous Industrial/Commercial Supplies,872.15,SKEMMTILEGT
FCOGPC20150600001,15/06/2015,"AUTO & TRUCK DLRS-SALES,SVC, REPRS,PRTS, & LEASING",IND,"Vehicles, servicing and spares",913.28,FORZA ENTERPRISES PVT.
FCOGPC20150600001,15/06/2015,ELECTRICAL PARTS AND EQUIPMENT,GBR,Building Materials,"1,025.76",WILTS ELECTRICAL BRITS
FCOGPC20150600001,15/06/2015,"CONSULTING, MANAGEMENT, AND PUBLIC RELATIONS SVCS",LUX,Professional Services,"1,044",PAYPAL INCUBUS VEN
FCOGPC20150600001,15/06/2015,"CONTRACTORS,SPECIAL TRADE-NOT ELSEWHERE CLASSIFIED",NGA,Building Services,"1,077.08",FINABOD ENTERPRISES
FCOGPC20150600001,15/06/2015,PROFESSIONAL SERVICES-NOT ELSEWHERE CLASSIFIED,ISR,Professional Services,"1,113.51",DUN AND BRADSTSEET
FCOGPC20150600001,15/06/2015,CONSTRUCTION MATERIALS NOT ELSEWHERE CLASSIFIED,AFG,Building Materials,"1,122.32",HASHMATULLAH OMARI CON
FCOGPC20150600001,15/06/2015,VARIETY STORES,ESP,General Retail and Wholesale,"1,123.64",19 MAKRO ALCOBENDAS
FCOGPC20150600001,15/06/2015,"COMMERCIAL EQUIPMENT, NOT ELSEWHERE CLASSIFIED",USA,Miscellaneous Industrial/Commercial Supplies,"1,201.74",BOLAND TRANE SERVICES
FCOGPC20150600001,15/06/2015,CUSTOMER FINCL INSTIT-MANUAL CASH DISBURSEMENTS,ISL,Cash,"1,237.71",CASH-SKOTSILFUR L
FCOGPC20150600001,15/06/2015,"CONTRACTORS,SPECIAL TRADE-NOT ELSEWHERE CLASSIFIED",NGA,Building Services,"1,297.31",FINABOD ENTERPRISES
FCOGPC20150600001,15/06/2015,METAL SERVICE CENTERS AND OFFICES,BRA,Miscellaneous Industrial/Commercial Supplies,"1,388.16",MARIA R M PASSOS ME
FCOGPC20150600001,15/06/2015,"DETECTVE/PROTECTVE AGNCY,SECURITY SRVS, ARMOR CARS",JAM,Personal Services,"1,398.36",HAWKEYE
FCOGPC20150600001,15/06/2015,MEN'S AND BOY'S CLOTHING AND ACCESSORIES STORES,TUN,General Retail and Wholesale,"1,415.50",SGHAIER BASMA
FCOGPC20150600001,15/06/2015,ELECTRICAL PARTS AND EQUIPMENT,GBR,Building Materials,"1,420",WILTS ELECTRICAL BRITS
FCOGPC20150600001,15/06/2015,DUTY FREE STORES,GBR,General Retail and Wholesale,"1,455.39",WWW.I-D-S.COM
FCOGPC20150600001,15/06/2015,METAL SERVICE CENTERS AND OFFICES,BRA,Miscellaneous Industrial/Commercial Supplies,"1,494.93",MARIA R M PASSOS ME
FCOGPC20150600001,15/06/2015,ELECTRICAL PARTS AND EQUIPMENT,GBR,Building Materials,"1,495",WILTS ELECTRICAL BRITS
FCOGPC20150600001,15/06/2015,ELECTRICAL PARTS AND EQUIPMENT,GBR,Building Materials,"1,500",WILTS ELECTRICAL BRITS
FCOGPC20150600001,15/06/2015,PROFESSIONAL SERVICES-NOT ELSEWHERE CLASSIFIED,USA,Professional Services,"2,013.86",INSTITUTE OF OD
FCOGPC20150600001,16/06/2015,"BUILDING MATERIALS, LUMBER STORES",ISR,Building Materials,502.67,YAKOV
FCOGPC20150600001,16/06/2015,HARDWARE STORES,IND,General Retail and Wholesale,526.95,WET CONCEPTS
FCOGPC20150600001,16/06/2015,WHOLESALE CLUBS,NGA,General Retail and Wholesale,536.86,NEBEUWA BEST AIR CONDI
FCOGPC20150600001,16/06/2015,"AUTOMOTIVE PARTS, ACCESSORIES STORES",GEO,"Vehicles, servicing and spares",564.26,TEGETA MOTORS (PEPELA
FCOGPC20150600001,16/06/2015,ELECTRICAL PARTS AND EQUIPMENT,JOR,Building Materials,631.65,SONA
FCOGPC20150600001,16/06/2015,MISCELLANEOUS HOUSE FURNISHING SPECIALTY SHOPS,USA,General Retail and Wholesale,631.89,WEST ELM E-COMMERCE
FCOGPC20150600001,16/06/2015,TRAVEL,RUS,Airline,653.79,AIRLINE
FCOGPC20150600001,16/06/2015,DUTY FREE STORES,TJK,General Retail and Wholesale,657.94,OOO TAD DYUTI FRI
FCOGPC20150600001,16/06/2015,COMPUTER NETWORK/INFORMATION SERVICES,GBR,Computer Equipment & Services,670.68,TIMICO
FCOGPC20150600001,16/06/2015,"UTLTS-ELCTRC, GAS, HEATING OIL, SANITARY, WATER",ZMB,Utilities and Non Automotive Fuel,670.94,ZESCO MANDA HIL
FCOGPC20150600001,16/06/2015,MISCELLANEOUS PUBLISHING AND PRINTING,MEX,Print and advertising,672.02,FACTOR DIGITAL
FCOGPC20150600001,16/06/2015,STAMP & COIN STORES-PHILATELIC & NUMISMATIC SUPPLY,NZL,General Retail and Wholesale,674.58,PITCAIRN ISLAND ADMIN
FCOGPC20150600001,16/06/2015,STAMP & COIN STORES-PHILATELIC & NUMISMATIC SUPPLY,NZL,General Retail and Wholesale,674.58,PITCAIRN ISLAND ADMIN
FCOGPC20150600001,16/06/2015,"FREIGHT CARRIER,TRUCKING-LCL/LNG DIST, MVG/STORAGE",GBR,Freight and Storage,712.38,ADAM CREASE LTD
FCOGPC20150600001,16/06/2015,"GROCERY STORES, SUPERMARKETS",JOR,General Retail and Wholesale,713.83,AL BASMA SUPERMARKET-
FCOGPC20150600001,16/06/2015,"COMMERCIAL EQUIPMENT, NOT ELSEWHERE CLASSIFIED",CAN,Miscellaneous Industrial/Commercial Supplies,723.76,JORDASH
FCOGPC20150600001,16/06/2015,BUSINESS SERVICES-NOT ELSEWHERE CLASSIFIED,FIN,Miscellaneous Industrial/Commercial Supplies,726.95,IZ MIETTINEN CONS
FCOGPC20150600001,16/06/2015,RECREATION SERVICES (NOT ELSEWHERE CLASSIFIED),ISR,Leisure Activities,732.73,MERTINC
FCOGPC20150600001,16/06/2015,DIRECT MARKETING-OTHER DIRECT MARKETERS/NOT ELSEW.,USA,Mail Order / Direct Selling,738.1,DLX FOR SMALLBUSINESS
FCOGPC20150600001,16/06/2015,ELECTRONIC SALES,RUS,General Retail and Wholesale,770.34,CHIP I DIP
FCOGPC20150600001,16/06/2015,"PACKAGE STORES, BEER, WINE, LIQUOR",MEX,General Retail and Wholesale,809.43,FREIXENET WORLD S WINE
FCOGPC20150600001,16/06/2015,PROFESSIONAL SERVICES-NOT ELSEWHERE CLASSIFIED,TUN,Professional Services,842.68,TUNISIE TELECOM
FCOGPC20150600001,16/06/2015,"GROCERY STORES, SUPERMARKETS",NGA,General Retail and Wholesale,852.03,IBECO GLOBAL LINKS LT
FCOGPC20150600001,16/06/2015,ELECTRICAL PARTS AND EQUIPMENT,TUN,Building Materials,865.14,CLIM 2 S
FCOGPC20150600001,16/06/2015,TRAVEL,RUS,Airline,877.15,AIRLINE
FCOGPC20150600001,16/06/2015,COSMETIC STORES,CYP,General Retail and Wholesale,923.04,SEACRET
FCOGPC20150600001,16/06/2015,BUSINESS SERVICES-NOT ELSEWHERE CLASSIFIED,GBR,Miscellaneous Industrial/Commercial Supplies,936.3,J W PLANT & CO LIMITED
FCOGPC20150600001,16/06/2015,HOTELS/MOTELS/RESORTS ,GHA,Hotels,964.64,ACCOMODATION SUPPLIER
FCOGPC20150600001,16/06/2015,STATIONERY/OFFICE SUPPLIES/PRINTING & WRITING PAP.,IND,"Office Stationery, equipment and supplies",978.44,PURPLE PAPER PRODUCTS
FCOGPC20150600001,16/06/2015,TRAVEL AGENCIES,SAU,Travel Agencies,"1,001.99",ALSANDROSS -TAMAIMI MA
FCOGPC20150600001,16/06/2015,"GROCERY STORES, SUPERMARKETS",AFG,General Retail and Wholesale,"1,043.12",AFGHAN TRADING AND LOG
FCOGPC20150600001,16/06/2015,"AUTO & TRUCK DLRS-SALES,SVC, REPRS,PRTS, & LEASING",GRC,"Vehicles, servicing and spares","1,050.14",KARENTA SA
FCOGPC20150600001,16/06/2015,"GROCERY STORES, SUPERMARKETS",DEU,General Retail and Wholesale,"1,059.04",METRO CASH & CARRY
FCOGPC20150600001,16/06/2015,MISCELLANEOUS AND SPECIALTY RETAIL STORES,GBR,General Retail and Wholesale,"1,105.87",S & P EQUIPMENT
FCOGPC20150600001,16/06/2015,"FABRIC, NEEDLEWORK, PIECE GOODS, AND SEWING STORES",GBR,General Retail and Wholesale,"1,106.24",WEMYSS WEAVERCRAFT LTD
FCOGPC20150600001,16/06/2015,MOTION PICTURE/VIDEO TAPE PRODUCTION/DISTRIBUTION,USA,Miscellaneous Industrial/Commercial Supplies,"1,205.10","IN AK PRODUCTIONS, LL"
FCOGPC20150600001,16/06/2015,PROFESSIONAL SERVICES-NOT ELSEWHERE CLASSIFIED,TUN,Professional Services,"1,232.70",TUNISIE TELECOM
FCOGPC20150600001,16/06/2015,"EATING PLACES, RESTAURANTS",MNE,Restuarants and Bars,"1,253.09",RESTORAN
FCOGPC20150600001,16/06/2015,"COLLEGES, UNIV, PRO SCHOOLS, JUNIOR COLLEGES",USA,Training and Educational,"1,274.46",ALLIANCE FRANCAISE WA
FCOGPC20150600001,16/06/2015,"EQUIP, FURNITURE, HOME FURNSHNGS STRS (EXCPT APPL)",KWT,General Retail and Wholesale,"1,297.53",MAHDI HABIB COMM.EST
FCOGPC20150600001,16/06/2015,"GROCERY STORES, SUPERMARKETS",ARE,General Retail and Wholesale,"1,309.09",CARREFOUR SHINDAGHA(DU
FCOGPC20150600001,16/06/2015,TRAVEL AGENCIES,SAU,Travel Agencies,"1,324.88",ALSANDROSS -TAMAIMI MA
FCOGPC20150600001,16/06/2015,FAMILY CLOTHING STORES,ISR,General Retail and Wholesale,"1,365.48",POLGAT
FCOGPC20150600001,16/06/2015,"EATING PLACES, RESTAURANTS",AUS,Restuarants and Bars,"1,458.62",LAMONT BISHOPS SEE
FCOGPC20150600001,16/06/2015,"DETECTVE/PROTECTVE AGNCY,SECURITY SRVS, ARMOR CARS",KEN,Personal Services,"1,493.91",ELEPHENCE LTD
FCOGPC20150600001,16/06/2015,INDUSTRIAL SUPPLIES NOT ELSEWHERE CLASSIFIED,USA,Miscellaneous Industrial/Commercial Supplies,"4,956.16",MCMASTER-CARR
FCOGPC20150600001,16/06/2015,BUSINESS SERVICES-NOT ELSEWHERE CLASSIFIED,USA,Miscellaneous Industrial/Commercial Supplies,"39,900",KITAPPS INC
FCOGPC20150600001,17/06/2015,HOTELS/MOTELS/RESORTS ,USA,Hotels,512.56,ACCOMODATION SUPPLIER
FCOGPC20150600001,17/06/2015,HOTELS/MOTELS/RESORTS ,USA,Hotels,512.56,ACCOMODATION SUPPLIER
FCOGPC20150600001,17/06/2015,HARDWARE STORES,ZAF,General Retail and Wholesale,525.88,MRS PAINT
FCOGPC20150600001,17/06/2015,POSTAL SERVICES-GOVERNMENT ONLY,LVA,Mail and Courier Services,537.19,RIGAS 10. PASTA NODALA
FCOGPC20150600001,17/06/2015,WHOLESALE CLUBS,USA,General Retail and Wholesale,539.96,BJ WHOLESALE
FCOGPC20150600001,17/06/2015,TAX PAYMENTS,ARG,Statutory Bodies,557.8,MUNICIPAL DE SAN ISIDR
FCOGPC20150600001,17/06/2015,HARDWARE STORES,ZAF,General Retail and Wholesale,559.22,MRS PAINT
FCOGPC20150600001,17/06/2015,HOUSEHOLD APPLIANCE STORES,USA,General Retail and Wholesale,560.51,PC RICHARD AND SON #29
FCOGPC20150600001,17/06/2015,TELECOMMUNICATION EQUIPMENT INCL TELEPHONE SALES,QAT,Telecommunication Services,561.01,OOREDOO KIOSK ATM
FCOGPC20150600001,17/06/2015,"COMP PROGRAMING,DATA PRCSNG,INTGRTD SYS DSGN SRVS",LBN,Computer Equipment & Services,565.43,GEEK EXPRESS
FCOGPC20150600001,17/06/2015,"ORGANIZATIONS, CHARITABLE AND SOCIAL SERVICES",GBR,Clubs/Associations/Organisations,575.59,THE BRITISH SCHOOL
FCOGPC20150600001,17/06/2015,MOTOR VEHICLE SUPPLIES AND NEW PARTS,GBR,"Vehicles, servicing and spares",580.89,TEAM LEYLAND INTERNATI
FCOGPC20150600001,17/06/2015,"CLEANING, GARMENT, AND LAUNDRY SERVICES",ITA,Cleaning Services and Supplies,590.97,LAVANDERIA COSTANTINI
FCOGPC20150600001,17/06/2015,MISCELLANEOUS AND SPECIALTY RETAIL STORES,IND,General Retail and Wholesale,598.96,MCCOY
FCOGPC20150600001,17/06/2015,AIR CONDITIONING AND REFRIGERATION REPAIR SHOPS,BHR,Building Services,601.58,EXPRESS COOL A/C WORK
FCOGPC20150600001,17/06/2015,TELECOM INCL PREPAID/RECURRING PHONE SVCS,NGA,Telecommunication Services,603.93,ADONAI SOLAK
FCOGPC20150600001,17/06/2015,DIRECT MARKETING-CONTINUITY/SUBSCRIPTION MERCHANTS,HKG,Mail Order / Direct Selling,626.01,RAJA FASHIONS-MO
FCOGPC20150600001,17/06/2015,ACCESSORY AND APPAREL STORES-MISCELLANEOUS,BRA,General Retail and Wholesale,632.55,SASSE
FCOGPC20150600001,17/06/2015,BUSINESS SERVICES-NOT ELSEWHERE CLASSIFIED,GBR,Miscellaneous Industrial/Commercial Supplies,635,J W PLANT & CO LIMITED
FCOGPC20150600001,17/06/2015,"MISC FOOD STORE-CONVENIENCE,MRKT,SPLTY,VENDNG MACS",TUR,Catering and Catering Supplies,645.34,IRDE GIDA INS.NAK.SAN.
FCOGPC20150600001,17/06/2015,"UTLTS-ELCTRC, GAS, HEATING OIL, SANITARY, WATER",AFG,Utilities and Non Automotive Fuel,648.26,ZEENAT ARIA LTD
FCOGPC20150600001,17/06/2015,MISCELLANEOUS GENERAL MERCHANDISE,SAU,General Retail and Wholesale,655.1,BIN TALEB FOR TRD
FCOGPC20150600001,17/06/2015,ELECTRONIC SALES,ROM,General Retail and Wholesale,657.46,MEDIA GALAXY FEERIA
FCOGPC20150600001,17/06/2015,"DETECTVE/PROTECTVE AGNCY,SECURITY SRVS, ARMOR CARS",KEN,Personal Services,682.54,KENYA KAZI SERV
FCOGPC20150600001,17/06/2015,HARDWARE EQUIPMENT AND SUPPLIES,BGD,Miscellaneous Industrial/Commercial Supplies,684.62,HASAN HARDWARE & PAINT
FCOGPC20150600001,17/06/2015,GENERAL CONTRACTORS/RESIDENTIAL BUILDINGS,DEU,Building Services,751.7,SUMUP SMMEDBAU
FCOGPC20150600001,17/06/2015,TRAVEL AGENCIES,AUS,Travel Agencies,752.79,BESTJET.COM
FCOGPC20150600001,17/06/2015,"EQUIP, FURNITURE, HOME FURNSHNGS STRS (EXCPT APPL)",LCA,General Retail and Wholesale,752.96,UNICOMER (SAINT LUCIA)
FCOGPC20150600001,17/06/2015,COMPUTER SOFTWARE STORES,GBR,Computer Equipment & Services,755.61,WWW.PCWB.COM
FCOGPC20150600001,17/06/2015,OFFICE PHOTOGRAPHIC PHOTOCOPY & MICROFILM EQUIPMT.,ISR,"Office Stationery, equipment and supplies",759.35,HEVER GROUP INTL
FCOGPC20150600001,17/06/2015,"EQUIP, FURNITURE, HOME FURNSHNGS STRS (EXCPT APPL)",BRA,General Retail and Wholesale,765.43,BL DECORACOES
FCOGPC20150600001,17/06/2015,"COMMERCIAL ART, GRAPHICS, PHOTOGRAPHY",LUX,Print and advertising,766.63,PAYPAL NEOPIX DMI
FCOGPC20150600001,17/06/2015,"COMMERCIAL ART, GRAPHICS, PHOTOGRAPHY",LUX,Print and advertising,766.63,PAYPAL NEOPIX DMI
FCOGPC20150600001,17/06/2015,"THEATRICAL PRODUCERS(EXCL MOTION PIX),TICKET AGNCY",BRA,Leisure Activities,772.17,CAIXA CENICA
FCOGPC20150600001,17/06/2015,"DRAPERY, UPOLSTERY, AND WINDOW COVERINGS STORES",JOR,General Retail and Wholesale,775.9,ALRAWAE'E CURTAINS
FCOGPC20150600001,17/06/2015,PROFESSIONAL SERVICES-NOT ELSEWHERE CLASSIFIED,GBR,Professional Services,794.4,CIVIL SERVICE LEARNING
FCOGPC20150600001,17/06/2015,PROFESSIONAL SERVICES-NOT ELSEWHERE CLASSIFIED,GBR,Professional Services,794.4,CIVIL SERVICE LEARNING
FCOGPC20150600001,17/06/2015,"DRAPERY, UPOLSTERY, AND WINDOW COVERINGS STORES",JOR,General Retail and Wholesale,795.12,ALRAWAE'E CURTAINS
FCOGPC20150600001,17/06/2015,"EATING PLACES, RESTAURANTS",ESP,Restuarants and Bars,809.71,NEXALIA SERVICES S.L.
FCOGPC20150600001,17/06/2015,"EATING PLACES, RESTAURANTS",ESP,Restuarants and Bars,809.71,NEXALIA SERVICES S.L.
FCOGPC20150600001,17/06/2015,BUSINESS SERVICES-NOT ELSEWHERE CLASSIFIED,NGA,Miscellaneous Industrial/Commercial Supplies,816.46,ANIYA PHARMECEUTICAL
FCOGPC20150600001,17/06/2015,DIRECT MARKETING-OTHER DIRECT MARKETERS/NOT ELSEW.,MAC,Mail Order / Direct Selling,818.55,MACAU TOWER (MAIL ORDE
FCOGPC20150600001,17/06/2015,"CONTRACTORS,SPECIAL TRADE-NOT ELSEWHERE CLASSIFIED",ARG,Building Services,823.96,PAISAJISMO SG
FCOGPC20150600001,17/06/2015,"EQUIP, FURNITURE, HOME FURNSHNGS STRS (EXCPT APPL)",BGD,General Retail and Wholesale,828.92,HI-FASHION GALLERY LTD
FCOGPC20150600001,17/06/2015,"PACKAGE STORES, BEER, WINE, LIQUOR",PRY,General Retail and Wholesale,845.74,BODEGA BOUTIQUE PREM
FCOGPC20150600001,17/06/2015,STATIONERY/OFFICE SUPPLIES/PRINTING & WRITING PAP.,KWT,"Office Stationery, equipment and supplies",879.46,AROMA STATIONARY CENTE
FCOGPC20150600001,17/06/2015,FAMILY CLOTHING STORES,ISR,General Retail and Wholesale,904.69,POLGAT
FCOGPC20150600001,17/06/2015,"CONTRACTORS,SPECIAL TRADE-NOT ELSEWHERE CLASSIFIED",NGA,Building Services,958.39,FINABOD ENTERPRISES
FCOGPC20150600001,17/06/2015,DIRECT MARKETING-COMBINATION CATALOG/RETAIL MERCH.,USA,General Retail and Wholesale,967.23,WAYFAIR WAYFAIR
FCOGPC20150600001,17/06/2015,HOTELS/MOTELS/RESORTS ,KEN,Hotels,"1,003.73",ACCOMODATION SUPPLIER
FCOGPC20150600001,17/06/2015,POSTAL SERVICES-GOVERNMENT ONLY,LVA,Mail and Courier Services,"1,022.91",RIGAS 10. PASTA NODALA
FCOGPC20150600001,17/06/2015,TRAVEL AGENCIES,IDN,Travel Agencies,"1,093.44",BAYU BUANA TRAVEL - NC
FCOGPC20150600001,17/06/2015,HOTELS/MOTELS/RESORTS ,KEN,Hotels,"1,104.11",ACCOMODATION SUPPLIER
FCOGPC20150600001,17/06/2015,MISCELLANEOUS GENERAL MERCHANDISE,NGA,General Retail and Wholesale,"1,113.57",SIMCARE NIG LTD
FCOGPC20150600001,17/06/2015,REAL ESTATE AGENTS AND MANAGERS-RENTALS,LBN,Uncategorised,"1,121.53",SAIFI PEARLS
FCOGPC20150600001,17/06/2015,GENERAL CONTRACTORS/RESIDENTIAL BUILDINGS,DEU,Building Services,"1,141.60",SUMUP SMMEDBAU
FCOGPC20150600001,17/06/2015,"DURABLE GOODS, NOT ELSEWHERE CLASSIFIED",MLT,Miscellaneous Industrial/Commercial Supplies,"1,145.94",ALBERTA FIRE
FCOGPC20150600001,17/06/2015,MISCELLANEOUS AND SPECIALTY RETAIL STORES,USA,General Retail and Wholesale,"1,174.09",PARTY INNOVATIONS
FCOGPC20150600001,17/06/2015,MISCELLANEOUS HOUSE FURNISHING SPECIALTY SHOPS,BRB,General Retail and Wholesale,"1,179.01",MIKA INC
FCOGPC20150600001,17/06/2015,MISCELLANEOUS HOUSE FURNISHING SPECIALTY SHOPS,BRB,General Retail and Wholesale,"1,179.01",MIKA INC
FCOGPC20150600001,17/06/2015,"EQUIP, FURNITURE, HOME FURNSHNGS STRS (EXCPT APPL)",KWT,General Retail and Wholesale,"1,179.77",SAFAT HOME AL-RAI
FCOGPC20150600001,17/06/2015,COMPUTER SOFTWARE STORES,IND,Computer Equipment & Services,"1,231.69",TECHSPACE CORPORATE SO
FCOGPC20150600001,17/06/2015,"EATING PLACES, RESTAURANTS",GBR,Restuarants and Bars,"1,257.43",OLD BENGAL WAREHOUSE
FCOGPC20150600001,17/06/2015,BUSINESS SERVICES-NOT ELSEWHERE CLASSIFIED,GBR,Miscellaneous Industrial/Commercial Supplies,"1,338",UBIQUS UK LIMITED
FCOGPC20150600001,17/06/2015,"DRAPERY, UPOLSTERY, AND WINDOW COVERINGS STORES",GBR,General Retail and Wholesale,"1,389.12",SWIFT DIRECT BLINDS LT
FCOGPC20150600001,17/06/2015,HOTELS/MOTELS/RESORTS ,DEU,Hotels,"1,465.22",ACCOMODATION SUPPLIER
FCOGPC20150600001,17/06/2015,PROFESSIONAL SERVICES-NOT ELSEWHERE CLASSIFIED,GBR,Professional Services,"1,500",CIVIL SERVICE LEARNING
FCOGPC20150600001,17/06/2015,FLORISTS,ISR,Estate and garden Services,"1,509.01",KADEY HASALOM
FCOGPC20150600001,17/06/2015,BUSINESS SERVICES-NOT ELSEWHERE CLASSIFIED,USA,Miscellaneous Industrial/Commercial Supplies,"2,113.80",BREDE WASHINGTON
FCOGPC20150600001,17/06/2015,HOTELS/MOTELS/RESORTS ,TWN,Hotels,"5,652.63",ACCOMODATION SUPPLIER
FCOGPC20150600001,18/06/2015,"DRAPERY, UPOLSTERY, AND WINDOW COVERINGS STORES",GBR,General Retail and Wholesale,500,DIRECT FABRICS
FCOGPC20150600001,18/06/2015,"EATING PLACES, RESTAURANTS",MEX,Restuarants and Bars,523.76,LAS CABALLERIZAS
FCOGPC20150600001,18/06/2015,POSTAL SERVICES-GOVERNMENT ONLY,LVA,Mail and Courier Services,534.73,RIGAS 10. PASTA NODALA
FCOGPC20150600001,18/06/2015,DEPARTMENT STORES,CZE,General Retail and Wholesale,542.44,PAYU.CZ HEUREKA.CZ
FCOGPC20150600001,18/06/2015,"DRAPERY, UPOLSTERY, AND WINDOW COVERINGS STORES",GBR,General Retail and Wholesale,544,DIRECT FABRICS
FCOGPC20150600001,18/06/2015,"EQUIP, FURNITURE, HOME FURNSHNGS STRS (EXCPT APPL)",IND,General Retail and Wholesale,574.34,NOBLE FURNISHINGS
FCOGPC20150600001,18/06/2015,"HEALTH PRACTITIONERS, MEDICAL SRVCS-NOT ELSEWHERE",KAZ,Medical Supplies and Services,576.95,SOS ASTANA
FCOGPC20150600001,18/06/2015,WHOLESALE CLUBS,NGA,General Retail and Wholesale,588.01,NEBEUWA BEST AIR CONDI
FCOGPC20150600001,18/06/2015,"BOOKS,PERIODICALS AND NEWSPAPERS",GBR,Books and Periodicals,610,HOUSE OF COMMONS
FCOGPC20150600001,18/06/2015,"DETECTVE/PROTECTVE AGNCY,SECURITY SRVS, ARMOR CARS",ZAF,Personal Services,619.91,SECURITY OBSERV 5681
FCOGPC20150600001,18/06/2015,MISCELLANEOUS AND SPECIALTY RETAIL STORES,LUX,General Retail and Wholesale,639.79,AMAZON MKTPLACE PMTS
FCOGPC20150600001,18/06/2015,ELECTRICAL PARTS AND EQUIPMENT,TUR,Building Materials,645.25,KIB-TEK LEFKOSA
FCOGPC20150600001,18/06/2015,BUSINESS SERVICES-NOT ELSEWHERE CLASSIFIED,GBR,Miscellaneous Industrial/Commercial Supplies,657.46,WP-LEGAL-ISLAND LT
FCOGPC20150600001,18/06/2015,MISCELLANEOUS GENERAL MERCHANDISE,KWT,General Retail and Wholesale,663.88,HUSSAM SULTAN COMPANY
FCOGPC20150600001,18/06/2015,BUSINESS SERVICES-NOT ELSEWHERE CLASSIFIED,NGA,Miscellaneous Industrial/Commercial Supplies,674.05,ANIYA PHARMECEUTICAL
FCOGPC20150600001,18/06/2015,ELECTRICAL PARTS AND EQUIPMENT,TUR,Building Materials,689.21,KIB-TEK LEFKOSA
FCOGPC20150600001,18/06/2015,MISCELLANEOUS AND SPECIALTY RETAIL STORES,GBR,General Retail and Wholesale,701.4,POWER ELECTRIC GENERAT
FCOGPC20150600001,18/06/2015,ELECTRICAL PARTS AND EQUIPMENT,NPL,Building Materials,701.74,EVO STORE
FCOGPC20150600001,18/06/2015,ELECTRICAL CONTRACTORS,JAM,Building Services,710.56,L S DUHANEY & CO LTD
FCOGPC20150600001,18/06/2015,FAMILY CLOTHING STORES,TUR,General Retail and Wholesale,715.09,ANKARA ANATOLIUM MAGZ.
FCOGPC20150600001,18/06/2015,TRAVEL AGENCIES,ROM,Travel Agencies,734.16,BALINT INTERNATIONAL
FCOGPC20150600001,18/06/2015,AIR CONDITIONING AND REFRIGERATION REPAIR SHOPS,BRB,Building Services,734.33,TMR SALES & SERVICES L
FCOGPC20150600001,18/06/2015,TRAVEL AGENCIES,EGY,Travel Agencies,741.47,MAGI TOURS
FCOGPC20150600001,18/06/2015,PASSENGER RAILWAYS,GBR,General Retail and Wholesale,764,EUROSTAR INT ECC
FCOGPC20150600001,18/06/2015,"UTLTS-ELCTRC, GAS, HEATING OIL, SANITARY, WATER",HRV,Utilities and Non Automotive Fuel,766.53,FINA 30101 ZAGREB
FCOGPC20150600001,18/06/2015,"COMPUTERS, COMPUTER PERIPHERAL EQUIPMENT, SOFTWARE",SWE,Computer Equipment & Services,782.48,EPAYMENT SERVICE EUROP
FCOGPC20150600001,18/06/2015,"EATING PLACES, RESTAURANTS",UGA,Restuarants and Bars,796.23,IRELAND INCORPORATED
FCOGPC20150600001,18/06/2015,INDUSTRIAL SUPPLIES NOT ELSEWHERE CLASSIFIED,IND,Miscellaneous Industrial/Commercial Supplies,819.87,DADIAL ELECTRIC WORKS
FCOGPC20150600001,18/06/2015,TOURIST ATTRACTIONS AND EXHIBITS,AUS,Leisure Activities,826.04,INFORMA AUSTRALIA
FCOGPC20150600001,18/06/2015,FAMILY CLOTHING STORES,TUR,General Retail and Wholesale,828.55,ANKARA ANATOLIUM MAGZ.
FCOGPC20150600001,18/06/2015,"QUICK COPY,REPRODUCTION AND BLUEPRINTING SERVICES",GBR,"Office Stationery, equipment and supplies",859.8,WWW.LESAR.CO.UK
FCOGPC20150600001,18/06/2015,FAMILY CLOTHING STORES,KEN,General Retail and Wholesale,903.74,DEACONS(K)LTD M
FCOGPC20150600001,18/06/2015,AUTOMOTIVE SERVICE SHOPS,TTO,"Vehicles, servicing and spares",932.69,ALLISON HAMILTON GARAG
FCOGPC20150600001,18/06/2015,POSTAL SERVICES-GOVERNMENT ONLY,LVA,Mail and Courier Services,"1,018.22",RIGAS 10. PASTA NODALA
FCOGPC20150600001,18/06/2015,TELECOM INCL PREPAID/RECURRING PHONE SVCS,DOM,Telecommunication Services,"1,026.98",ORANGE EXPRESSO
FCOGPC20150600001,18/06/2015,AUTOMOTIVE SERVICE SHOPS,TTO,"Vehicles, servicing and spares","1,028.01",ALLISON HAMILTON GARAG
FCOGPC20150600001,18/06/2015,PROFESSIONAL SERVICES-NOT ELSEWHERE CLASSIFIED,GBR,Professional Services,"1,033.20",REGUS
FCOGPC20150600001,18/06/2015,SHOE STORES,TUR,General Retail and Wholesale,"1,036.88",ETICHET ERSOYLAR SPOR
FCOGPC20150600001,18/06/2015,MISCELLANEOUS PUBLISHING AND PRINTING,TUR,Print and advertising,"1,054.76",GUZELIS OFSET MATBAACI
FCOGPC20150600001,18/06/2015,FAMILY CLOTHING STORES,KEN,General Retail and Wholesale,"1,078.55",DEACONS(K)LTD M
FCOGPC20150600001,18/06/2015,TRAVEL AGENCIES,ARM,Travel Agencies,"1,086.37",VISA CONCORD URAL 2
FCOGPC20150600001,18/06/2015,AIR CONDITIONING AND REFRIGERATION REPAIR SHOPS,BRB,Building Services,"1,103.12",TMR SALES & SERVICES L
FCOGPC20150600001,18/06/2015,"EQUIP, FURNITURE, HOME FURNSHNGS STRS (EXCPT APPL)",TUR,General Retail and Wholesale,"1,164.85",IKEA-MOBILYA VE AKSESU
FCOGPC20150600001,18/06/2015,DEPARTMENT STORES,ZAF,General Retail and Wholesale,"1,171.93",MAKRO SILVER LAKES SBS
FCOGPC20150600001,18/06/2015,ELECTRICAL PARTS AND EQUIPMENT,TUR,Building Materials,"1,191.82",MOTO-EKIPMAN ELEKTRIK
FCOGPC20150600001,18/06/2015,LANDSCAPING AND HORTICULTURAL SERVICES,CAN,Estate and garden Services,"1,200.08",LINDSAY LANDSCAPE INC.
FCOGPC20150600001,18/06/2015,"DETECTVE/PROTECTVE AGNCY,SECURITY SRVS, ARMOR CARS",ZAF,Personal Services,"1,276.94",SECURITY OBSERV 5681
FCOGPC20150600001,18/06/2015,"QUICK COPY,REPRODUCTION AND BLUEPRINTING SERVICES",CAN,"Office Stationery, equipment and supplies","1,281.38",FLASH GRAFIX
FCOGPC20150600001,18/06/2015,CRYSTAL AND GLASSWARE STORES,KEN,General Retail and Wholesale,"1,303.19",E.A. GLASSWARE
FCOGPC20150600001,18/06/2015,CRYSTAL AND GLASSWARE STORES,KEN,General Retail and Wholesale,"1,308.75",E.A. GLASSWARE
FCOGPC20150600001,18/06/2015,CRYSTAL AND GLASSWARE STORES,KEN,General Retail and Wholesale,"1,313.37",E.A. GLASSWARE
FCOGPC20150600001,18/06/2015,"COMPUTERS, COMPUTER PERIPHERAL EQUIPMENT, SOFTWARE",TUR,Computer Equipment & Services,"1,445.73",MOTO-REKLAM CIFTLIGI D
FCOGPC20150600001,18/06/2015,OTHER SERVICES (NOT ELSEWHERE CLASSIFIED),BIH,Professional Services,"1,602.96",HEADHUNT
FCOGPC20150600001,18/06/2015,HOTELS/MOTELS/RESORTS ,GBR,Hotels,"7,716.31",ACCOMODATION SUPPLIER
FCOGPC20150600001,19/06/2015,HARDWARE STORES,GRC,General Retail and Wholesale,506.86,GLASS CLEANING
FCOGPC20150600001,19/06/2015,HOTELS/MOTELS/RESORTS ,ARM,Hotels,507.67,ACCOMODATION SUPPLIER
FCOGPC20150600001,19/06/2015,"BUILDING MATERIALS, LUMBER STORES",JAM,Building Materials,514.48,EXOTIC STONE CREATIONS
FCOGPC20150600001,19/06/2015,HOTELS/MOTELS/RESORTS ,CAN,Hotels,527.06,ACCOMODATION SUPPLIER
FCOGPC20150600001,19/06/2015,HOTELS/MOTELS/RESORTS ,JPN,Hotels,549.85,ACCOMODATION SUPPLIER
FCOGPC20150600001,19/06/2015,HOTELS/MOTELS/RESORTS ,JPN,Hotels,549.85,ACCOMODATION SUPPLIER
FCOGPC20150600001,19/06/2015,PROFESSIONAL SERVICES-NOT ELSEWHERE CLASSIFIED,GBR,Professional Services,574.27,CIVIL SERVICE LEARNING
FCOGPC20150600001,19/06/2015,DIRECT MARKETING-CONTINUITY/SUBSCRIPTION MERCHANTS,IRL,Mail Order / Direct Selling,582.95,LINKEDIN-283 0994943
FCOGPC20150600001,19/06/2015,"FREIGHT CARRIER,TRUCKING-LCL/LNG DIST, MVG/STORAGE",CAN,Freight and Storage,593.97,GUARDIAN OVERSEAS SHIP
FCOGPC20150600001,19/06/2015,"ALTERATIONS, MENDING, SEAMSTRESSES, TAILORS",HRV,General Retail and Wholesale,601.34,SENTUP
FCOGPC20150600001,19/06/2015,"DRUG STORES, PHARMACIES",PAK,Medical Supplies and Services,659.53,WORLD MART
FCOGPC20150600001,19/06/2015,"COMPUTERS, COMPUTER PERIPHERAL EQUIPMENT, SOFTWARE",GRC,Computer Equipment & Services,674.66,PLAISIO STORES
FCOGPC20150600001,19/06/2015,TRAVEL,AUS,Airline,680.22,AIRLINE
FCOGPC20150600001,19/06/2015,"COMPUTERS, COMPUTER PERIPHERAL EQUIPMENT, SOFTWARE",GRC,Computer Equipment & Services,703.74,PLAISIO STORES
FCOGPC20150600001,19/06/2015,"COMPUTERS, COMPUTER PERIPHERAL EQUIPMENT, SOFTWARE",GRC,Computer Equipment & Services,703.74,PLAISIO STORES
FCOGPC20150600001,19/06/2015,CONSTRUCTION MATERIALS NOT ELSEWHERE CLASSIFIED,TUR,Building Materials,709.67,FIMOB MIMARLIK TURIZM
FCOGPC20150600001,19/06/2015,MISCELLANEOUS PUBLISHING AND PRINTING,USA,Print and advertising,711.44,IN INTERGRAPHICS LITH
FCOGPC20150600001,19/06/2015,CONCRETE WORK CONTRACTORS,ITA,Building Services,725.67,ELETTRONICA INTERN 655
FCOGPC20150600001,19/06/2015,"COMPUTERS, COMPUTER PERIPHERAL EQUIPMENT, SOFTWARE",GRC,Computer Equipment & Services,727.35,PLAISIO STORES
FCOGPC20150600001,19/06/2015,PROFESSIONAL SERVICES-NOT ELSEWHERE CLASSIFIED,BRB,Professional Services,732.45,PROFESSIONAL EXECUTIVE
FCOGPC20150600001,19/06/2015,"UTLTS-ELCTRC, GAS, HEATING OIL, SANITARY, WATER",HRV,Utilities and Non Automotive Fuel,793.81,FINA 30101 ZAGREB
FCOGPC20150600001,19/06/2015,PROFESSIONAL SERVICES-NOT ELSEWHERE CLASSIFIED,BRB,Professional Services,813.83,PROFESSIONAL EXECUTIVE
FCOGPC20150600001,19/06/2015,STAMP & COIN STORES-PHILATELIC & NUMISMATIC SUPPLY,NZL,General Retail and Wholesale,816.91,PITCAIRN ISLAND ADMIN
FCOGPC20150600001,19/06/2015,"UTLTS-ELCTRC, GAS, HEATING OIL, SANITARY, WATER",ZWE,Utilities and Non Automotive Fuel,836.38,CLARES WATER
FCOGPC20150600001,19/06/2015,HOTELS/MOTELS/RESORTS ,GBR,Hotels,867.5,ACCOMODATION SUPPLIER
FCOGPC20150600001,19/06/2015,"EQUIP, FURNITURE, HOME FURNSHNGS STRS (EXCPT APPL)",DNK,General Retail and Wholesale,882.76,WWW.IKEA.DK
FCOGPC20150600001,19/06/2015,"COLLEGES, UNIV, PRO SCHOOLS, JUNIOR COLLEGES",BRB,Training and Educational,895.21,UNIVERSITY OF THE WEST
FCOGPC20150600001,19/06/2015,DIRECT MARKETING-COMBINATION CATALOG/RETAIL MERCH.,USA,General Retail and Wholesale,905.64,WAYFAIR WAYFAIR
FCOGPC20150600001,19/06/2015,BUSINESS SERVICES-NOT ELSEWHERE CLASSIFIED,TUR,Miscellaneous Industrial/Commercial Supplies,915.26,AKBRELLA SEMSIYE
FCOGPC20150600001,19/06/2015,BUSINESS SERVICES-NOT ELSEWHERE CLASSIFIED,DEU,Miscellaneous Industrial/Commercial Supplies,916.43,RAUMAUSSTATTUNG KREBES
FCOGPC20150600001,19/06/2015,"AUTO & TRUCK DLRS-SALES,SVC, REPRS,PRTS, & LEASING",BRA,"Vehicles, servicing and spares",975.79,LAND RIO
FCOGPC20150600001,19/06/2015,MISCELLANEOUS AND SPECIALTY RETAIL STORES,DEU,General Retail and Wholesale,980.04,SUMUP MARINA BAKONYI
FCOGPC20150600001,19/06/2015,"EATING PLACES, RESTAURANTS",GBR,Restuarants and Bars,987.87,THE JONES FAMILY PROJE
FCOGPC20150600001,19/06/2015,"BUILDING MATERIALS, LUMBER STORES",JAM,Building Materials,"1,000.54",EXOTIC STONE CREATIONS
FCOGPC20150600001,19/06/2015,DIRECT MARKETING-CATALOG MERCHANTS,GBR,Mail Order / Direct Selling,"1,038.11",STATIONERY OFFICE BOOK
FCOGPC20150600001,19/06/2015,MISCELLANEOUS AND SPECIALTY RETAIL STORES,DEU,General Retail and Wholesale,"1,058.14",SUMUP MARINA BAKONYI
FCOGPC20150600001,19/06/2015,POSTAL SERVICES-GOVERNMENT ONLY,LVA,Mail and Courier Services,"1,102.14",RIGAS 10. PASTA NODALA
FCOGPC20150600001,19/06/2015,POSTAL SERVICES-GOVERNMENT ONLY,LVA,Mail and Courier Services,"1,102.14",RIGAS 10. PASTA NODALA
FCOGPC20150600001,19/06/2015,"DRUG STORES, PHARMACIES",GBR,Medical Supplies and Services,"1,120",RPS LABORATORIES
FCOGPC20150600001,19/06/2015,NEWS DEALERS AND NEWSSTANDS,PER,Books and Periodicals,"1,155.60",EL COMERCIO
FCOGPC20150600001,19/06/2015,ELECTRONIC SALES,IND,General Retail and Wholesale,"1,190.85",DEEPAK ELECTRICALS
FCOGPC20150600001,19/06/2015,GOVERNMENT SERVICES-NOT ELSEWHERE CLASSIFIED,AUS,Statutory Bodies,"1,253.03",SOUTH BANK VISITOR INF
FCOGPC20150600001,19/06/2015,DAIRY PRODUCTS STORES,GBR,Catering and Catering Supplies,"1,329.25",RIPPON CHEESE STOR
FCOGPC20150600001,19/06/2015,"EQUIP, FURNITURE, HOME FURNSHNGS STRS (EXCPT APPL)",HRV,General Retail and Wholesale,"4,871.45",IKEA P-0021
FCOGPC20150600001,19/06/2015,HOTELS/MOTELS/RESORTS ,GBR,Hotels,"6,492.56",ACCOMODATION SUPPLIER
FCOGPC20150600001,20/06/2015,TRAVEL AGENCIES,IND,Travel Agencies,567.39,DNATA
FCOGPC20150600001,20/06/2015,AUTOMOTIVE SERVICE SHOPS,ARE,"Vehicles, servicing and spares",793.71,OCTANE CAR SERVICE
FCOGPC20150600001,20/06/2015,BOOK STORES,IND,Books and Periodicals,815.29,SUPER ENTERPRISES
FCOGPC20150600001,21/06/2015,HOTELS/MOTELS/RESORTS ,CYM,Hotels,607.45,ACCOMODATION SUPPLIER
FCOGPC20150600001,21/06/2015,HOTELS/MOTELS/RESORTS ,CYM,Hotels,607.45,ACCOMODATION SUPPLIER
FCOGPC20150600001,21/06/2015,HOTELS/MOTELS/RESORTS ,CYM,Hotels,607.45,ACCOMODATION SUPPLIER
FCOGPC20150600001,21/06/2015,HOTELS/MOTELS/RESORTS ,CYM,Hotels,607.45,ACCOMODATION SUPPLIER
FCOGPC20150600001,21/06/2015,HOTELS/MOTELS/RESORTS ,CYM,Hotels,607.45,ACCOMODATION SUPPLIER
FCOGPC20150600001,21/06/2015,HOTELS/MOTELS/RESORTS ,CYM,Hotels,607.45,ACCOMODATION SUPPLIER
FCOGPC20150600001,21/06/2015,HOTELS/MOTELS/RESORTS ,CYM,Hotels,607.45,ACCOMODATION SUPPLIER
FCOGPC20150600001,21/06/2015,"GROCERY STORES, SUPERMARKETS",KEN,General Retail and Wholesale,880.46,NAKUMATT - PRESTIGE PL
FCOGPC20150600001,21/06/2015,DIRECT MARKETING-CATALOG MERCHANTS,GBR,Mail Order / Direct Selling,887.95,WWW.NISBETS.COM
FCOGPC20150600001,21/06/2015,"GROCERY STORES, SUPERMARKETS",ARE,General Retail and Wholesale,903.25,LULU HYPERMARKET LLC-B
FCOGPC20150600001,21/06/2015,MISC/AUTO/AIRCRAFT/FARM EQUIP NOT ELSEWHERE CLASS,ARE,"Vehicles, servicing and spares","1,225.85",SILBER ARROWS 1934 AUT
FCOGPC20150600001,21/06/2015,"DRAPERY, UPOLSTERY, AND WINDOW COVERINGS STORES",JOR,General Retail and Wholesale,"1,525.28",ALRAWAE'E CURTAINS
FCOGPC20150600001,22/06/2015,TRAVEL AGENCIES,CYP,Travel Agencies,510.52,EVEREST GENERAL TOURIS
FCOGPC20150600001,22/06/2015,MISCELLANEOUS AND SPECIALTY RETAIL STORES,LUX,General Retail and Wholesale,512.1,AMAZON MKTPLCE EU-IT
FCOGPC20150600001,22/06/2015,"FABRIC, NEEDLEWORK, PIECE GOODS, AND SEWING STORES",IND,General Retail and Wholesale,524.48,GURU NANAK TRADERS
FCOGPC20150600001,22/06/2015,ADVERTISING SERVICES,IRL,Print and advertising,527.49,TWITTER ADVERTISING
FCOGPC20150600001,22/06/2015,CONSTRUCTION MATERIALS NOT ELSEWHERE CLASSIFIED,ZAF,Building Materials,535.46,CA MAINTENANCE 5611
FCOGPC20150600001,22/06/2015,HOUSEHOLD APPLIANCE STORES,TUR,General Retail and Wholesale,555.83,ARCELIK-SAFA TIC DAY T
FCOGPC20150600001,22/06/2015,HOUSEHOLD APPLIANCE STORES,TUR,General Retail and Wholesale,555.83,ARCELIK-SAFA TIC DAY T
FCOGPC20150600001,22/06/2015,"CABLE, SATELLITE, OTHER PAY TELEVISION, RADIO SVCS",KEN,General Retail and Wholesale,569.12,MULTICHOICE KENYA LIMI
FCOGPC20150600001,22/06/2015,SERVICE STATIONS WITH OR WITHOUT ANCILLARY SERVICE,GRC,Automotive Fuel,574.5,KORAKIANITIS GER BROS
FCOGPC20150600001,22/06/2015,"SCHOOLS, ELEMENTARY AND SECONDARY",FRA,Training and Educational,590.87,ISP
FCOGPC20150600001,22/06/2015,HOME SUPPLY WAREHOUSE STORES,TUR,General Retail and Wholesale,627.36,CETIN SARIDUMAN
FCOGPC20150600001,22/06/2015,PASSENGER RAILWAYS,GBR,General Retail and Wholesale,647.5,LONDON & SOUTH EAS
FCOGPC20150600001,22/06/2015,CATERERS,GBR,Catering and Catering Supplies,702.78,ELIOR HEAD OFFICE
FCOGPC20150600001,22/06/2015,"MISC FOOD STORE-CONVENIENCE,MRKT,SPLTY,VENDNG MACS",AUT,Catering and Catering Supplies,750.32,METRO 1110
FCOGPC20150600001,22/06/2015,WHOLESALE CLUBS,RUS,General Retail and Wholesale,750.53,METRO STORE 1013
FCOGPC20150600001,22/06/2015,BUSINESS SERVICES-NOT ELSEWHERE CLASSIFIED,TUR,Miscellaneous Industrial/Commercial Supplies,783,MOTO-ELCIN PROFESYONEL
FCOGPC20150600001,22/06/2015,SECURITIES-BROKERS/DEALERS,GRC,Financial Services,806.03,G4S SECURE SOLUTIONS S
FCOGPC20150600001,22/06/2015,"COMPUTERS, COMPUTER PERIPHERAL EQUIPMENT, SOFTWARE",MEX,Computer Equipment & Services,840.5,CTI
FCOGPC20150600001,22/06/2015,"COMPUTERS, COMPUTER PERIPHERAL EQUIPMENT, SOFTWARE",MEX,Computer Equipment & Services,850.49,CTI
FCOGPC20150600001,22/06/2015,"HEATING, PLUMBING, AIR CONDITIONING CONTRACTORS",ISR,Building Services,864.8,SHEMESH HAY HASHZAKOT
FCOGPC20150600001,22/06/2015,MISCELLANEOUS GENERAL MERCHANDISE,CYP,General Retail and Wholesale,868.93,LEFKIOS SOUNDTECH SECU
FCOGPC20150600001,22/06/2015,HARDWARE EQUIPMENT AND SUPPLIES,ZWE,Miscellaneous Industrial/Commercial Supplies,990.08,KNELT TRADING
FCOGPC20150600001,22/06/2015,"EQUIP, FURNITURE, HOME FURNSHNGS STRS (EXCPT APPL)",GBR,General Retail and Wholesale,"1,000.58",DIPLOMATIC MISSION
FCOGPC20150600001,22/06/2015,CONSTRUCTION MATERIALS NOT ELSEWHERE CLASSIFIED,ZAF,Building Materials,"1,011.64",CA MAINTENANCE 5611
FCOGPC20150600001,22/06/2015,MISCELLANEOUS AND SPECIALTY RETAIL STORES,GBR,General Retail and Wholesale,"1,016.68",POWER ELECTRIC GENERAT
FCOGPC20150600001,22/06/2015,MISCELLANEOUS GENERAL MERCHANDISE,CYP,General Retail and Wholesale,"1,042.72",LEFKIOS SOUNDTECH SECU
FCOGPC20150600001,22/06/2015,MISCELLANEOUS AND SPECIALTY RETAIL STORES,AUT,General Retail and Wholesale,"1,107.89",SECA SECURITIY
FCOGPC20150600001,22/06/2015,MISCELLANEOUS AND SPECIALTY RETAIL STORES,AUT,General Retail and Wholesale,"1,107.89",SECA SECURITIY
FCOGPC20150600001,22/06/2015,MISCELLANEOUS AND SPECIALTY RETAIL STORES,AUT,General Retail and Wholesale,"1,107.89",SECA SECURITIY
FCOGPC20150600001,22/06/2015,COMPUTER SOFTWARE STORES,ISR,Computer Equipment & Services,"1,126.74",LTSC
FCOGPC20150600001,22/06/2015,HARDWARE STORES,IND,General Retail and Wholesale,"1,156.68",HARSH PAINTS CORPORATI
FCOGPC20150600001,22/06/2015,HOTELS/MOTELS/RESORTS ,ZAF,Hotels,"1,209.71",ACCOMODATION SUPPLIER
FCOGPC20150600001,22/06/2015,"AUTO & TRUCK DLRS-SALES,SVC, REPRS,PRTS, & LEASING",LCA,"Vehicles, servicing and spares","1,250.31",J Q MOTORS LTD
FCOGPC20150600001,22/06/2015,CONSTRUCTION MATERIALS NOT ELSEWHERE CLASSIFIED,ZAF,Building Materials,"1,256.33",CA MAINTENANCE 5611
FCOGPC20150600001,22/06/2015,"GROCERY STORES, SUPERMARKETS",ISR,General Retail and Wholesale,"1,293.32",MAKOLET A.S.L.K
FCOGPC20150600001,22/06/2015,CONSTRUCTION MATERIALS NOT ELSEWHERE CLASSIFIED,ZAF,Building Materials,"1,350.86",CA MAINTENANCE 5611
FCOGPC20150600001,22/06/2015,TRAVEL AGENCIES,CYP,Travel Agencies,"1,358.95",EVEREST GENERAL TOURIS
FCOGPC20150600001,22/06/2015,CONSTRUCTION MATERIALS NOT ELSEWHERE CLASSIFIED,ZAF,Building Materials,"1,369.03",CA MAINTENANCE 5611
FCOGPC20150600001,22/06/2015,CONSTRUCTION MATERIALS NOT ELSEWHERE CLASSIFIED,ZAF,Building Materials,"1,381.16",CA MAINTENANCE 5611
FCOGPC20150600001,22/06/2015,TELECOM INCL PREPAID/RECURRING PHONE SVCS,GRC,Telecommunication Services,"1,420.80",VODAFONE BILL PAYMENT
FCOGPC20150600001,22/06/2015,"EQUIP, FURNITURE, HOME FURNSHNGS STRS (EXCPT APPL)",UKR,General Retail and Wholesale,"1,440.82",MEBELNIYSALONMIBERT
FCOGPC20150600001,22/06/2015,PROFESSIONAL SERVICES-NOT ELSEWHERE CLASSIFIED,GBR,Professional Services,"1,500",CIVIL SERVICE LEARNING
FCOGPC20150600001,23/06/2015,BOOK STORES,GBR,Books and Periodicals,500,WATERSTONES
FCOGPC20150600001,23/06/2015,"EATING PLACES, RESTAURANTS",USA,Restuarants and Bars,525.41,CLAUDE HOPPERS TAV
FCOGPC20150600001,23/06/2015,PROFESSIONAL SERVICES-NOT ELSEWHERE CLASSIFIED,GBR,Professional Services,526.8,CIVIL SERVICE LEARNING
FCOGPC20150600001,23/06/2015,ELECTRICAL PARTS AND EQUIPMENT,JOR,Building Materials,533.29,SMART BUY
FCOGPC20150600001,23/06/2015,"EQUIPMENT RENTAL&LEASING SVS, FURNTURE/TOOL RENTAL",CAN,Miscellaneous Industrial/Commercial Supplies,562.37,REBEL TENTS
FCOGPC20150600001,23/06/2015,"CONTRACTORS,SPECIAL TRADE-NOT ELSEWHERE CLASSIFIED",GBR,Building Services,566,ACO ELECTONICS LTD
FCOGPC20150600001,23/06/2015,"AUTO & TRUCK DLRS-SALES,SVC, REPRS,PRTS, & LEASING",MNG,"Vehicles, servicing and spares",566.4,MSM GROUP LLC
FCOGPC20150600001,23/06/2015,"MISC FOOD STORE-CONVENIENCE,MRKT,SPLTY,VENDNG MACS",JPN,Catering and Catering Supplies,568.96,SQ BANGIT FLORDELIZA
FCOGPC20150600001,23/06/2015,"MISC FOOD STORE-CONVENIENCE,MRKT,SPLTY,VENDNG MACS",JPN,Catering and Catering Supplies,568.97,SQ BANGIT FLORDELIZA
FCOGPC20150600001,23/06/2015,"EQUIP, FURNITURE, HOME FURNSHNGS STRS (EXCPT APPL)",JOR,General Retail and Wholesale,570.92,DIMENSION SIGMOID
FCOGPC20150600001,23/06/2015,HOTELS/MOTELS/RESORTS ,IND,Hotels,579.85,ACCOMODATION SUPPLIER
FCOGPC20150600001,23/06/2015,ELECTRICAL PARTS AND EQUIPMENT,KWT,Building Materials,582.44,GULF NIGHT EST.
FCOGPC20150600001,23/06/2015,DIRECT MARKETING-CATALOG MERCHANTS,JPN,Mail Order / Direct Selling,584.74,BB&R LIMITED
FCOGPC20150600001,23/06/2015,MOTOR VEHICLE SUPPLIES AND NEW PARTS,GBR,"Vehicles, servicing and spares",586.08,TEAM LEYLAND INTERNATI
FCOGPC20150600001,23/06/2015,DEPARTMENT STORES,QAT,General Retail and Wholesale,588.8,IKEA
FCOGPC20150600001,23/06/2015,"HEALTH PRACTITIONERS, MEDICAL SRVCS-NOT ELSEWHERE",TTO,Medical Supplies and Services,654.02,NORTH ELEVEN
FCOGPC20150600001,23/06/2015,"PACKAGE STORES, BEER, WINE, LIQUOR",PHL,General Retail and Wholesale,665.59,FORTH AND TAY INC EVT
FCOGPC20150600001,23/06/2015,"CABLE, SATELLITE, OTHER PAY TELEVISION, RADIO SVCS",KEN,General Retail and Wholesale,676.91,MULTICHOICE KENYA LIMI
FCOGPC20150600001,23/06/2015,BUSINESS SERVICES-NOT ELSEWHERE CLASSIFIED,FIN,Miscellaneous Industrial/Commercial Supplies,716.2,IZ MIETTINEN CONS
FCOGPC20150600001,23/06/2015,DIRECT MARKETING-CATALOG MERCHANTS,GBR,Mail Order / Direct Selling,730.86,STATIONERY OFFICE BOOK
FCOGPC20150600001,23/06/2015,"PACKAGE STORES, BEER, WINE, LIQUOR",DEU,General Retail and Wholesale,734.58,A & O GETRAENKE-LIEFER
FCOGPC20150600001,23/06/2015,HOTELS/MOTELS/RESORTS ,PAK,Hotels,736.83,ACCOMODATION SUPPLIER
FCOGPC20150600001,23/06/2015,HOSPITALS,CHL,Medical Supplies and Services,766.2,CLINICA ALEMANA STGO
FCOGPC20150600001,23/06/2015,REAL ESTATE AGENTS AND MANAGERS-RENTALS,LBN,Uncategorised,773.64,SAIFI PEARLS
FCOGPC20150600001,23/06/2015,"MISC FOOD STORE-CONVENIENCE,MRKT,SPLTY,VENDNG MACS",JPN,Catering and Catering Supplies,779.49,SQ BANGIT FLORDELIZA
FCOGPC20150600001,23/06/2015,"AUTO & TRUCK DLRS-SALES,SVC, REPRS,PRTS, & LEASING",HRV,"Vehicles, servicing and spares",814.18,GRAND AUTO SALON
FCOGPC20150600001,23/06/2015,"DETECTVE/PROTECTVE AGNCY,SECURITY SRVS, ARMOR CARS",KEN,Personal Services,827.42,ELEPHENCE LTD
FCOGPC20150600001,23/06/2015,AUTOMOBILE RENTAL AGENCY-NOT ELSEWHERE CLASSIFIED,BRA,Auto rental,827.69,CAMKAR
FCOGPC20150600001,23/06/2015,"PACKAGE STORES, BEER, WINE, LIQUOR",DEU,General Retail and Wholesale,873.4,A & O GETRAENKE-LIEFER
FCOGPC20150600001,23/06/2015,TRAVEL,MEX,Airline,952.99,AIRLINE
FCOGPC20150600001,23/06/2015,MISCELLANEOUS AND SPECIALTY RETAIL STORES,GBR,General Retail and Wholesale,993.77,POWER ELECTRIC GENERAT
FCOGPC20150600001,23/06/2015,MEN'S/WOMEN'S/CHILDREN'S UNIFORMS/COMMERCIAL CLOTH,GBR,Business Clothing and Footwear,"1,000",INDUSTRIAL WORKWEAR LI
FCOGPC20150600001,23/06/2015,BUSINESS SERVICES-NOT ELSEWHERE CLASSIFIED,NOR,Miscellaneous Industrial/Commercial Supplies,"1,021.63",FINN JOBB AS
FCOGPC20150600001,23/06/2015,ELECTRONIC SALES,ITA,General Retail and Wholesale,"1,065.12",SANTORI GIOVANNI DI MA
FCOGPC20150600001,23/06/2015,"FREIGHT CARRIER,TRUCKING-LCL/LNG DIST, MVG/STORAGE",CAN,Freight and Storage,"1,072.01",ATLAS VAN LINES
FCOGPC20150600001,23/06/2015,SPORTING GOODS STORES,KWT,General Retail and Wholesale,"1,132.53",GULF SERVICES EST
FCOGPC20150600001,23/06/2015,"COMPUTERS, COMPUTER PERIPHERAL EQUIPMENT, SOFTWARE",ISR,Computer Equipment & Services,"1,190.40",BUG
FCOGPC20150600001,23/06/2015,TRAVEL,MEX,Airline,"1,212.90",AIRLINE
FCOGPC20150600001,23/06/2015,MEN'S/WOMEN'S/CHILDREN'S UNIFORMS/COMMERCIAL CLOTH,GBR,Business Clothing and Footwear,"1,235.78",INDUSTRIAL WORKWEAR LI
FCOGPC20150600001,23/06/2015,"ARTIST SUPPLY STORES, CRAFT SHOPS",GBR,General Retail and Wholesale,"1,358.50",THE MAP SHOP
FCOGPC20150600001,23/06/2015,HOTELS/MOTELS/RESORTS ,SVN,Hotels,"1,384.29",ACCOMODATION SUPPLIER
FCOGPC20150600001,23/06/2015,"EQUIP, FURNITURE, HOME FURNSHNGS STRS (EXCPT APPL)",JOR,General Retail and Wholesale,"1,390.45",DIMENSION SIGMOID
FCOGPC20150600001,23/06/2015,"COMMERCIAL ART, GRAPHICS, PHOTOGRAPHY",USA,Print and advertising,"1,473.63",IN IONIC DESIGN GROUP
FCOGPC20150600001,23/06/2015,ELECTRICAL PARTS AND EQUIPMENT,GBR,Building Materials,"1,500",WILTS ELECTRICAL BRITS
FCOGPC20150600001,23/06/2015,ELECTRICAL PARTS AND EQUIPMENT,GBR,Building Materials,"1,500",WILTS ELECTRICAL BRITS
FCOGPC20150600001,23/06/2015,DUTY FREE STORES,GBR,General Retail and Wholesale,"1,500",WWW.I-D-S.COM
FCOGPC20150600001,23/06/2015,HOTELS/MOTELS/RESORTS ,DEU,Hotels,"2,847.19",ACCOMODATION SUPPLIER
FCOGPC20150600001,23/06/2015,ELECTRONIC SALES,NLD,General Retail and Wholesale,"3,011.03",WWW.BLACKBOX.CO.UK
FCOGPC20150600001,24/06/2015,MISCELLANEOUS PUBLISHING AND PRINTING,CAN,Print and advertising,501.36,TPH ACCOUNT HUB
FCOGPC20150600001,24/06/2015,LIMOUSINES AND TAXICABS,GBR,Travel - Air/Rail/Road,515,VERIFONE TAXI/PRIVATE
FCOGPC20150600001,24/06/2015,LIMOUSINES AND TAXICABS,GBR,Travel - Air/Rail/Road,515,VERIFONE TAXI/PRIVATE
FCOGPC20150600001,24/06/2015,MISCELLANEOUS AND SPECIALTY RETAIL STORES,RUS,General Retail and Wholesale,518.04,ELEKTROMONTAZH
FCOGPC20150600001,24/06/2015,ELECTRONIC SALES,BGD,General Retail and Wholesale,525.1,GREEN HOUSE ENTERPRISE
FCOGPC20150600001,24/06/2015,ELECTRONIC SALES,BGD,General Retail and Wholesale,525.11,GREEN HOUSE ENTERPRISE
FCOGPC20150600001,24/06/2015,WHOLESALE CLUBS,RUS,General Retail and Wholesale,543.63,METRO STORE 1013
FCOGPC20150600001,24/06/2015,ELECTRONIC SALES,ITA,General Retail and Wholesale,566.26,BERGAMO ENERGIE
FCOGPC20150600001,24/06/2015,"BUILDING MATERIALS, LUMBER STORES",BRA,Building Materials,581.5,ELETRICA GOL
FCOGPC20150600001,24/06/2015,TRAVEL,BEL,Airline,597.9,AIRLINE
FCOGPC20150600001,24/06/2015,"BOOKS,PERIODICALS AND NEWSPAPERS",MSR,Books and Periodicals,610.85,MONTSERRAT STATIONERY
FCOGPC20150600001,24/06/2015,STATIONERY/OFFICE SUPPLIES/PRINTING & WRITING PAP.,KEN,"Office Stationery, equipment and supplies",620.15,MFI DOCUMENT SOLUTIONS
FCOGPC20150600001,24/06/2015,"EQUIP, FURNITURE, HOME FURNSHNGS STRS (EXCPT APPL)",AFG,General Retail and Wholesale,644.7,RAHIAN NOOR TRADING CO
FCOGPC20150600001,24/06/2015,DUTY FREE STORES,DNK,General Retail and Wholesale,676.7,PETER JUSTESEN COMPANY
FCOGPC20150600001,24/06/2015,MISCELLANEOUS GENERAL MERCHANDISE,NGA,General Retail and Wholesale,702.35,SIMCARE NIG LTD
FCOGPC20150600001,24/06/2015,ELECTRICAL CONTRACTORS,PAN,Building Services,706.1,SEGURINTEH SA
FCOGPC20150600001,24/06/2015,CONSTRUCTION MATERIALS NOT ELSEWHERE CLASSIFIED,AFG,Building Materials,713.73,DAWOOD ANGAR LTD
FCOGPC20150600001,24/06/2015,AUTOMOTIVE SERVICE SHOPS,USA,"Vehicles, servicing and spares",755.57,ALAN MOTOR AUTO REPAIR
FCOGPC20150600001,24/06/2015,"CONTRACTORS,SPECIAL TRADE-NOT ELSEWHERE CLASSIFIED",ARG,Building Services,757.14,PAISAJISMO SG
FCOGPC20150600001,24/06/2015,"MISC FOOD STORE-CONVENIENCE,MRKT,SPLTY,VENDNG MACS",AUT,Catering and Catering Supplies,764.73,METRO 1110
FCOGPC20150600001,24/06/2015,TRAVEL,USA,Airline,836.88,AIRLINE
FCOGPC20150600001,24/06/2015,ELECTRICAL PARTS AND EQUIPMENT,GBR,Building Materials,842,WILTS ELECTRICAL BRITS
FCOGPC20150600001,24/06/2015,"DURABLE GOODS, NOT ELSEWHERE CLASSIFIED",UKR,Miscellaneous Industrial/Commercial Supplies,843.1,EMATRAS89
FCOGPC20150600001,24/06/2015,DENTAL/LAB/MED/OPHTHALMIC HOSP EQUIP & SUPPLIES,PAK,General Retail and Wholesale,848.89,EXCEL LABS PVT LTD
FCOGPC20150600001,24/06/2015,"AUTO & TRUCK DLRS-SALES,SVC, REPRS,PRTS, & LEASING",IDN,"Vehicles, servicing and spares",857.19,ASTRA INT'L TOYOTA TB
FCOGPC20150600001,24/06/2015,"EATING PLACES, RESTAURANTS",IRL,Restuarants and Bars,872.92,BRAMBLES
FCOGPC20150600001,24/06/2015,CATERERS,MLT,Catering and Catering Supplies,971.86,VILLA ARRIGO LIMITED
FCOGPC20150600001,24/06/2015,FLORISTS,JOR,Estate and garden Services,975.72,ARD & WARD
FCOGPC20150600001,24/06/2015,"AUTO & TRUCK DLRS-SALES,SVC, REPRS,PRTS, & LEASING",BRB,"Vehicles, servicing and spares",976.56,SIMPSON MOTORS LTD
FCOGPC20150600001,24/06/2015,HOTELS/MOTELS/RESORTS ,SLV,Hotels,998.47,ACCOMODATION SUPPLIER
FCOGPC20150600001,24/06/2015,"AUTO & TRUCK DLRS-SALES,SVC, REPRS,PRTS, & LEASING",BRB,"Vehicles, servicing and spares","1,028.95",SIMPSON MOTORS LTD
FCOGPC20150600001,24/06/2015,"ACCOUNTING, AUDITING AND BOOKKEEPING SERVICES",GBR,Professional Services,"1,056",CHARTERED INSTITUTE OF
FCOGPC20150600001,24/06/2015,"SCHOOLS, BUSINESS AND SECRETARIAL",ESP,Training and Educational,"1,061.54",INTERNATIONAL HOUSE MA
FCOGPC20150600001,24/06/2015,HOUSEHOLD APPLIANCE STORES,TUR,General Retail and Wholesale,"1,071.03",SELAHATTIN CELIKBAS
FCOGPC20150600001,24/06/2015,TRAVEL,USA,Airline,"1,075.80",AIRLINE
FCOGPC20150600001,24/06/2015,TRAVEL,USA,Airline,"1,075.80",AIRLINE
FCOGPC20150600001,24/06/2015,HOTELS/MOTELS/RESORTS ,DEU,Hotels,"1,088.59",ACCOMODATION SUPPLIER
FCOGPC20150600001,24/06/2015,HOSPITALS,PAK,Medical Supplies and Services,"1,103.30",SHIFA INTERNATIONAL
FCOGPC20150600001,24/06/2015,"EQUIP, FURNITURE, HOME FURNSHNGS STRS (EXCPT APPL)",JOR,General Retail and Wholesale,"1,105.69",S.E.T.I. JORDAN LTD
FCOGPC20150600001,24/06/2015,HOSPITALS,PAK,Medical Supplies and Services,"1,171.40",SHIFA INTERNATIONAL
FCOGPC20150600001,24/06/2015,TRAVEL,ESP,Airline,"1,186.96",AIRLINE
FCOGPC20150600001,24/06/2015,"EQUIP, FURNITURE, HOME FURNSHNGS STRS (EXCPT APPL)",JOR,General Retail and Wholesale,"1,197.84",S.E.T.I. JORDAN LTD
FCOGPC20150600001,24/06/2015,PROFESSIONAL SERVICES-NOT ELSEWHERE CLASSIFIED,GBR,Professional Services,"1,200",CIPD ENTERPRISES
FCOGPC20150600001,24/06/2015,"UTLTS-ELCTRC, GAS, HEATING OIL, SANITARY, WATER",MSR,Utilities and Non Automotive Fuel,"1,235.82",CABLE & WIRELESS W.I M
FCOGPC20150600001,24/06/2015,HOTELS/MOTELS/RESORTS ,USA,Hotels,"1,271.97",ACCOMODATION SUPPLIER
FCOGPC20150600001,24/06/2015,"GROCERY STORES, SUPERMARKETS",MSR,General Retail and Wholesale,"1,278.77",ASHOK SADHWANI
FCOGPC20150600001,24/06/2015,HOUSEHOLD APPLIANCE STORES,TUR,General Retail and Wholesale,"1,326.61",SELAHATTIN CELIKBAS
FCOGPC20150600001,24/06/2015,FLORISTS,JOR,Estate and garden Services,"1,382.11",ARD & WARD
FCOGPC20150600001,24/06/2015,"OFFICE, SCHOOL SUPPLY, AND STATIONERY STORES",JAM,"Office Stationery, equipment and supplies","1,385.63",ILLUMINAT JA LTD
FCOGPC20150600001,24/06/2015,TRAVEL,SAU,Airline,"1,461.20",AIRLINE
FCOGPC20150600001,24/06/2015,"EATING PLACES, RESTAURANTS",DNK,Restuarants and Bars,"1,701.52",FOLKETINGET
FCOGPC20150600001,24/06/2015,TRAVEL,BRA,Airline,"1,806.48",AIRLINE
FCOGPC20150600001,24/06/2015,DUTY FREE STORES,DNK,General Retail and Wholesale,"2,041.84",PETER JUSTESEN COMPANY
FCOGPC20150600001,24/06/2015,"UTLTS-ELCTRC, GAS, HEATING OIL, SANITARY, WATER",HRV,Utilities and Non Automotive Fuel,"6,171.75",FINA 30101 ZAGREB
FCOGPC20150600001,25/06/2015,"BUILDING MATERIALS, LUMBER STORES",NOR,Building Materials,516.97,MAXBO VAEKEROE AVD274
FCOGPC20150600001,25/06/2015,"COMPUTERS, COMPUTER PERIPHERAL EQUIPMENT, SOFTWARE",MNG,Computer Equipment & Services,541.27,BSB AMANKHUUR
FCOGPC20150600001,25/06/2015,"MISC FOOD STORE-CONVENIENCE,MRKT,SPLTY,VENDNG MACS",GRC,Catering and Catering Supplies,558.65,ATFLYA EPE
FCOGPC20150600001,25/06/2015,TRAVEL,SAU,Airline,564.67,AIRLINE
FCOGPC20150600001,25/06/2015,TRAVEL,SAU,Airline,564.67,AIRLINE
FCOGPC20150600001,25/06/2015,DIRECT MARKETING-OTHER DIRECT MARKETERS/NOT ELSEW.,USA,Mail Order / Direct Selling,568.07,PAR PLUMBING CO. INC.
FCOGPC20150600001,25/06/2015,"HEALTH PRACTITIONERS, MEDICAL SRVCS-NOT ELSEWHERE",AUS,Medical Supplies and Services,579.62,THE TRAVEL DOCTOR
FCOGPC20150600001,25/06/2015,CONSTRUCTION MATERIALS NOT ELSEWHERE CLASSIFIED,TUR,Building Materials,587.15,SAHIN TICARET VE NAKLI
FCOGPC20150600001,25/06/2015,DIRECT MARKETING-CONTINUITY/SUBSCRIPTION MERCHANTS,IRL,Mail Order / Direct Selling,607.24,LINKEDIN
FCOGPC20150600001,25/06/2015,CIGAR STORES AND STANDS,CYP,General Retail and Wholesale,642.54,CAVA POTON SOPHOCLEOUS
FCOGPC20150600001,25/06/2015,NEWS DEALERS AND NEWSSTANDS,HUN,Books and Periodicals,652.58,ABSOLUT MEDIA ZRT.
FCOGPC20150600001,25/06/2015,"AUTO & TRUCK DLRS-SALES,SVC, REPRS,PRTS, & LEASING",USA,"Vehicles, servicing and spares",661.21,LAND ROVER HOUSTON
FCOGPC20150600001,25/06/2015,MISCELLANEOUS GENERAL MERCHANDISE,NGA,General Retail and Wholesale,702.52,SIMCARE NIG LTD
FCOGPC20150600001,25/06/2015,"AUTO & TRUCK DLRS-SALES,SVC, REPRS,PRTS, & LEASING",USA,"Vehicles, servicing and spares",723.96,ROSENTHAL JAGUAR/LAND
FCOGPC20150600001,25/06/2015,DIRECT MARKETING-CONTINUITY/SUBSCRIPTION MERCHANTS,NOR,Mail Order / Direct Selling,726.8,UPSTREAM AS (NH
FCOGPC20150600001,25/06/2015,INDUSTRIAL SUPPLIES NOT ELSEWHERE CLASSIFIED,IND,Miscellaneous Industrial/Commercial Supplies,778.72,DADIAL ELECTRIC WORKS
FCOGPC20150600001,25/06/2015,"OFFICE, SCHOOL SUPPLY, AND STATIONERY STORES",PAN,"Office Stationery, equipment and supplies",791.05,POSTNET
FCOGPC20150600001,25/06/2015,GOVERNMENT SERVICES-NOT ELSEWHERE CLASSIFIED,GBR,Statutory Bodies,820,DEPARTMENT OF WORKING
FCOGPC20150600001,25/06/2015,MISCELLANEOUS AND SPECIALTY RETAIL STORES,GBR,General Retail and Wholesale,821.83,POWER ELECTRIC GENERAT
FCOGPC20150600001,25/06/2015,HOTELS/MOTELS/RESORTS ,RUS,Hotels,830.81,ACCOMODATION SUPPLIER
FCOGPC20150600001,25/06/2015,"GROCERY STORES, SUPERMARKETS",ZAF,General Retail and Wholesale,846.62,PNP HATFIELD
FCOGPC20150600001,25/06/2015,PROFESSIONAL SERVICES-NOT ELSEWHERE CLASSIFIED,USA,Professional Services,868.58,SQ PARTY EXECS
FCOGPC20150600001,25/06/2015,BUSINESS SERVICES-NOT ELSEWHERE CLASSIFIED,USA,Miscellaneous Industrial/Commercial Supplies,884.74,PR NEWSWIRE ASSOCIATI
FCOGPC20150600001,25/06/2015,ELECTRONIC SALES,TUR,General Retail and Wholesale,896.64,ELEKTRONIK CIHAZLAR
FCOGPC20150600001,25/06/2015,CATERERS,USA,Catering and Catering Supplies,914,PAYPAL AELASSOCIAT
FCOGPC20150600001,25/06/2015,"EATING PLACES, RESTAURANTS",KWT,Restuarants and Bars,918.81,MAIS ALGHANIM RESTURAN
FCOGPC20150600001,25/06/2015,BUSINESS SERVICES-NOT ELSEWHERE CLASSIFIED,GRC,Miscellaneous Industrial/Commercial Supplies,939.19,NAVICAR LTD
FCOGPC20150600001,25/06/2015,SERVICE STATIONS WITH OR WITHOUT ANCILLARY SERVICE,ZAF,Automotive Fuel,955.73,TOTAL ILLOVO
FCOGPC20150600001,25/06/2015,CONSTRUCTION MATERIALS NOT ELSEWHERE CLASSIFIED,AFG,Building Materials,"1,017.84",HASHMATULLAH OMARI CON
FCOGPC20150600001,25/06/2015,ELECTRICAL PARTS AND EQUIPMENT,ZAF,Building Materials,"1,023.63",MONUMENT PARK APPLIAN
FCOGPC20150600001,25/06/2015,AUTOMOTIVE SERVICE SHOPS,MYS,"Vehicles, servicing and spares","1,042.38",SDAC-JLN IPOH
FCOGPC20150600001,25/06/2015,RECORD SHOPS,AUS,General Retail and Wholesale,"1,083.44",AUDIO SOLUTIONS
FCOGPC20150600001,25/06/2015,"GLASS, PAINT, WALLPAPER STORES",AFG,Building Materials,"1,097.33",ARGHAWAN PAINT STORE
FCOGPC20150600001,25/06/2015,"GROCERY STORES, SUPERMARKETS",KEN,General Retail and Wholesale,"1,219.38",CHANDARANA MOBI
FCOGPC20150600001,25/06/2015,PROFESSIONAL SERVICES-NOT ELSEWHERE CLASSIFIED,USA,Professional Services,"1,224.27",SQ PARTY EXECS
FCOGPC20150600001,25/06/2015,PROFESSIONAL SERVICES-NOT ELSEWHERE CLASSIFIED,USA,Professional Services,"1,224.27",SQ PARTY EXECS
FCOGPC20150600001,25/06/2015,"EQUIP, FURNITURE, HOME FURNSHNGS STRS (EXCPT APPL)",PAK,General Retail and Wholesale,"1,253.27",ARIF BROS
FCOGPC20150600001,25/06/2015,PROFESSIONAL SERVICES-NOT ELSEWHERE CLASSIFIED,GBR,Professional Services,"1,296",CIVIL SERVICE LEARNING
FCOGPC20150600001,25/06/2015,PROFESSIONAL SERVICES-NOT ELSEWHERE CLASSIFIED,USA,Professional Services,"1,305.89",SQ PARTY EXECS
FCOGPC20150600001,25/06/2015,ELECTRICAL CONTRACTORS,GBR,Building Services,"1,446.80",R&M ELECTRICAL GRO
FCOGPC20150600001,25/06/2015,TRAVEL,ESP,Airline,"2,374.52",TAM WEB UK
FCOGPC20150600001,25/06/2015,CIGAR STORES AND STANDS,DNK,General Retail and Wholesale,"2,449.79",PETER JUSTESEN COMPANY
FCOGPC20150600001,26/06/2015,LIMOUSINES AND TAXICABS,GBR,Travel - Air/Rail/Road,515,VERIFONE TAXI/PRIVATE
FCOGPC20150600001,26/06/2015,LIMOUSINES AND TAXICABS,GBR,Travel - Air/Rail/Road,515,VERIFONE TAXI/PRIVATE
FCOGPC20150600001,26/06/2015,DIRECT MARKETING-CONTINUITY/SUBSCRIPTION MERCHANTS,ISR,Mail Order / Direct Selling,529.37,GLOBS
FCOGPC20150600001,26/06/2015,"CONTRACTORS,SPECIAL TRADE-NOT ELSEWHERE CLASSIFIED",NGA,Building Services,546.78,FRANCINO ENT NIG LTD
FCOGPC20150600001,26/06/2015,"ORGANIZATIONS, CHARITABLE AND SOCIAL SERVICES",USA,Clubs/Associations/Organisations,564.94,PROTOCOL & DIPLOMACY I
FCOGPC20150600001,26/06/2015,"QUICK COPY,REPRODUCTION AND BLUEPRINTING SERVICES",ARG,"Office Stationery, equipment and supplies",573.61,ELITE
FCOGPC20150600001,26/06/2015,SERVICE STATIONS WITH OR WITHOUT ANCILLARY SERVICE,IND,Automotive Fuel,634.24,AUTO CARE CENTRE
FCOGPC20150600001,26/06/2015,BUSINESS SERVICES-NOT ELSEWHERE CLASSIFIED,GBR,Miscellaneous Industrial/Commercial Supplies,705.6,UBIQUS UK LIMITED
FCOGPC20150600001,26/06/2015,TRAVEL AGENCIES,THA,Travel Agencies,750.93,DHL H.O.
FCOGPC20150600001,26/06/2015,AUTOMOTIVE TIRE STORES,PER,"Vehicles, servicing and spares",760.02,EKONO LLANTAS
FCOGPC20150600001,26/06/2015,"EQUIP, FURNITURE, HOME FURNSHNGS STRS (EXCPT APPL)",ROM,General Retail and Wholesale,770.14,MOBEXPERT BANEASA
FCOGPC20150600001,26/06/2015,"EQUIP, FURNITURE, HOME FURNSHNGS STRS (EXCPT APPL)",GBR,General Retail and Wholesale,772.14,DIPLOMATIC MISSION SUP
FCOGPC20150600001,26/06/2015,AUTOMOTIVE SERVICE SHOPS,GBR,"Vehicles, servicing and spares",788,GUAVA INTNL
FCOGPC20150600001,26/06/2015,"UTLTS-ELCTRC, GAS, HEATING OIL, SANITARY, WATER",ITA,Utilities and Non Automotive Fuel,794.26,STARPISCINE
FCOGPC20150600001,26/06/2015,"GROCERY STORES, SUPERMARKETS",LBN,General Retail and Wholesale,898.16,SPINNEY'S-HZ 1
FCOGPC20150600001,26/06/2015,CATERERS,GBR,Catering and Catering Supplies,961.8,ALISON PRICE AND COMPA
FCOGPC20150600001,26/06/2015,"UTLTS-ELCTRC, GAS, HEATING OIL, SANITARY, WATER",SLV,Utilities and Non Automotive Fuel,979.67,EL DIARIO DE HOY
FCOGPC20150600001,26/06/2015,SCHOOLS & EDUCATIONAL SVC-NOT ELSEWHERE CLASSIFIED,GBR,Training and Educational,999,PERPETUITY TRAININ
FCOGPC20150600001,26/06/2015,HOTELS/MOTELS/RESORTS ,GBR,Hotels,"1,020",ACCOMODATION SUPPLIER
FCOGPC20150600001,26/06/2015,COMPUTER NETWORK/INFORMATION SERVICES,AUS,Computer Equipment & Services,"1,036.02",PROJECTORY
FCOGPC20150600001,26/06/2015,"CONTRACTORS,SPECIAL TRADE-NOT ELSEWHERE CLASSIFIED",CAN,Building Services,"1,062.89",RAINBOW INTL OF OTTAWA
FCOGPC20150600001,26/06/2015,TOURIST ATTRACTIONS AND EXHIBITS,AUS,Leisure Activities,"1,106.76",INFORMA AUSTRALIA
FCOGPC20150600001,26/06/2015,MISCELLANEOUS AND SPECIALTY RETAIL STORES,USA,General Retail and Wholesale,"1,167.58",HIGHLINE PARTY RENTALS
FCOGPC20150600001,26/06/2015,"GLASS, PAINT, WALLPAPER STORES",KEN,Building Materials,"1,259.10",TIRUPATI KENYA
FCOGPC20150600001,26/06/2015,"GLASS, PAINT, WALLPAPER STORES",KEN,Building Materials,"1,259.10",TIRUPATI KENYA
FCOGPC20150600001,26/06/2015,"GLASS, PAINT, WALLPAPER STORES",KEN,Building Materials,"1,259.10",TIRUPATI KENYA
FCOGPC20150600001,26/06/2015,"GLASS, PAINT, WALLPAPER STORES",KEN,Building Materials,"1,315.91",TIRUPATI KENYA
FCOGPC20150600001,26/06/2015,"GLASS, PAINT, WALLPAPER STORES",KEN,Building Materials,"1,348.02",TIRUPATI KENYA
FCOGPC20150600001,26/06/2015,COMPUTER SOFTWARE STORES,ROM,Computer Equipment & Services,"1,348.18",PRINSART
FCOGPC20150600001,26/06/2015,BOOK STORES,GBR,Books and Periodicals,"1,350",BRITISH LIBRARY BKSHOP
FCOGPC20150600001,26/06/2015,HOTELS/MOTELS/RESORTS ,DEU,Hotels,"1,715.68",ACCOMODATION SUPPLIER
FCOGPC20150600001,26/06/2015,HOTELS/MOTELS/RESORTS ,GBR,Hotels,"1,990",ACCOMODATION SUPPLIER
FCOGPC20150600001,26/06/2015,AUTOMOBILE RENTAL AGENCY-NOT ELSEWHERE CLASSIFIED,GBR,Auto rental,"2,025.80",TRAVELHIRE
FCOGPC20150600001,26/06/2015,BRITISH A,MEX,Airline,"2,051.29",BRITISH AIRWAYS
FCOGPC20150600001,26/06/2015,"OFFICE, SCHOOL SUPPLY, AND STATIONERY STORES",GBR,"Office Stationery, equipment and supplies","2,233.03",CARTRIDGESAVE.CO.UK
FCOGPC20150600001,27/06/2015,"EATING PLACES, RESTAURANTS",USA,Restuarants and Bars,896.33,THE BOMBAY CLUB
FCOGPC20150600001,27/06/2015,"EATING PLACES, RESTAURANTS",USA,Restuarants and Bars,897.64,THE BOMBAY CLUB
FCOGPC20150600001,28/06/2015,TRAVEL AGENCIES AND TOUR OPERATORS,SAU,Travel Agencies,506.99,ALSANDROSS -TAMAIMI MA
FCOGPC20150600001,28/06/2015,MISCELLANEOUS AND SPECIALTY RETAIL STORES,SAU,General Retail and Wholesale,766.59,PUMP TECHNOLOGY EST
FCOGPC20150600001,28/06/2015,"SANITATION, POLISHING & SPECIALITY CLEANING PREP",ARE,Cleaning Services and Supplies,935.72,AL BARWAZ CORNER CLNNG
FCOGPC20150600001,29/06/2015,DIRECT MARKETING-OTHER DIRECT MARKETERS/NOT ELSEW.,AUT,Mail Order / Direct Selling,559.36,VIERPUNKT
FCOGPC20150600001,29/06/2015,TELECOM INCL PREPAID/RECURRING PHONE SVCS,PAK,Telecommunication Services,587.41,TELENOR PAKISTAN PVT
FCOGPC20150600001,29/06/2015,"UTLTS-ELCTRC, GAS, HEATING OIL, SANITARY, WATER",JAM,Utilities and Non Automotive Fuel,644.09,SHAW HAULAGE LIMITED
FCOGPC20150600001,29/06/2015,OTHER SERVICES (NOT ELSEWHERE CLASSIFIED),USA,Professional Services,650.47,IN BIOTECH PRIMER INC
FCOGPC20150600001,29/06/2015,BUSINESS SERVICES-NOT ELSEWHERE CLASSIFIED,GBR,Miscellaneous Industrial/Commercial Supplies,675,UBIQUS UK LIMITED
FCOGPC20150600001,29/06/2015,WHOLESALE CLUBS,RUS,General Retail and Wholesale,675.73,METRO STORE 1013
FCOGPC20150600001,29/06/2015,"INSURANCE SALES,UNDERWRITING,AND PREMIUMS",PAN,Financial Services,682.53,ASSA COMPANIA DE SEGUR
FCOGPC20150600001,29/06/2015,PROFESSIONAL SERVICES-NOT ELSEWHERE CLASSIFIED,GBR,Professional Services,714,CIVIL SERVICE LEARNING
FCOGPC20150600001,29/06/2015,"GROCERY STORES, SUPERMARKETS",GBR,General Retail and Wholesale,750,WAITROSE 513
FCOGPC20150600001,29/06/2015,TRAVEL AGENCIES AND TOUR OPERATORS,ZAR,Travel Agencies,760.3,JEFFERY TRAVELS
FCOGPC20150600001,29/06/2015,ELECTRONIC SALES,HUN,General Retail and Wholesale,767.46,EXTREME DIGITAL
FCOGPC20150600001,29/06/2015,CONSTRUCTION MATERIALS NOT ELSEWHERE CLASSIFIED,TUR,Building Materials,847.12,SAHIN TICARET VE NAKLI
FCOGPC20150600001,29/06/2015,AUTOMOTIVE SERVICE SHOPS,MYS,"Vehicles, servicing and spares",863.43,SDAC-PJ (LAND ROVER)
FCOGPC20150600001,29/06/2015,TRAVEL AGENCIES AND TOUR OPERATORS,ZAR,Travel Agencies,879.92,JEFFERY TRAVELS
FCOGPC20150600001,29/06/2015,PROFESSIONAL SERVICES-NOT ELSEWHERE CLASSIFIED,POL,Professional Services,890.95,MIX OFFICE
FCOGPC20150600001,29/06/2015,PROFESSIONAL SERVICES-NOT ELSEWHERE CLASSIFIED,POL,Professional Services,911.67,MIX OFFICE
FCOGPC20150600001,29/06/2015,"EATING PLACES, RESTAURANTS",JOR,Restuarants and Bars,922.57,JABRI
FCOGPC20150600001,29/06/2015,"EATING PLACES, RESTAURANTS",JOR,Restuarants and Bars,936.41,JABRI
FCOGPC20150600001,29/06/2015,OFFICE AND COMMERCIAL FURNITURE,BRA,"Office Stationery, equipment and supplies",948.95,ATEC ORIGINAL DESIG RJ
FCOGPC20150600001,29/06/2015,TELECOMMUNICATION EQUIPMENT INCL TELEPHONE SALES,CAN,Telecommunication Services,982.42,BELL CANADA (CR)
FCOGPC20150600001,29/06/2015,FAST FOOD RESTAURANTS,BRA,Restuarants and Bars,"1,019.86",GED EVENTOS E LOCADORA
FCOGPC20150600001,29/06/2015,PROFESSIONAL SERVICES-NOT ELSEWHERE CLASSIFIED,GBR,Professional Services,"1,034.11",WWW.CBBC.ORG
FCOGPC20150600001,29/06/2015,"DURABLE GOODS, NOT ELSEWHERE CLASSIFIED",USA,Miscellaneous Industrial/Commercial Supplies,"1,036.35",SIGNS BY TOMORROW
FCOGPC20150600001,29/06/2015,DIRECT MARKETING-OTHER DIRECT MARKETERS/NOT ELSEW.,AUT,Mail Order / Direct Selling,"1,092.48",VIERPUNKT
FCOGPC20150600001,29/06/2015,BRITISH A,MEX,Airline,"1,198.92",BRITISH AIRWAYS
FCOGPC20150600001,29/06/2015,MALAYSIAN AIRLINE SYSTEM,AUS,Airline,"1,261.58",MALAYSIA AIRLINES
FCOGPC20150600001,29/06/2015,BOOK STORES,THA,Books and Periodicals,"1,312.96",THE POST PUBLISHING /A
FCOGPC20150600001,29/06/2015,"EQUIP, FURNITURE, HOME FURNSHNGS STRS (EXCPT APPL)",BRN,General Retail and Wholesale,"1,450.92",THOMSON FURNITURE - BE
